{"text_format":"1","workbook":"xlsx","n_sheets":21,"sheets":["Cover Page","Contents","Facility Info","Operational Data","Operational Summary","Perf. Form 1","Energy Form 1","Permit Compliance","Improvements","Public Liasion","Residue Quality ","Water","Air (periodic)","Air (CEMS)","HCl","SO2","NOx","TOC","Particulates","CO 95% 10 min","NH3"],"not_rendered":{"charts":7,"images":2,"macros":1,"external_links":0,"defined_names":22,"comments":0,"pivot_tables":0},"unopened":[],"bounds":{"document_bytes":16777216,"sheet_cells":100000,"rows_first":2000,"rows_last":500,"rows_between":2000,"halvings":0,"cell_chars":16384,"cell_head_chars":4096},"cells_cut":0,"cells_raw":0,"read":"whole","date_system":"1900"}

{"sheet":"Cover Page","index":0,"n_rows":53,"n_cols":14,"rows_kept":53,"cut":false,"hidden":false,"merged":[[48,2,48,3],[48,6,48,8],[52,2,52,3],[36,1,36,8],[40,2,40,8],[42,2,42,4],[44,2,44,4],[46,2,46,3],[46,6,46,8],[13,13,18,15],[34,1,34,8],[0,3,5,6],[7,1,23,8],[28,1,28,8],[30,1,30,8],[32,1,32,8]]}
[null,null,null,"Add company logo"]
[null,null,null,null,null,null,null,null,null,null,null,null,null,"Version 20.1 "]
[]
[]
[]
[]
[]
[null,"Add photo"]
[]
[]
[]
[]
[null,null,null,null,null,null,null,null,null,null,null,null,null,"Notes:"]
[null,null,null,null,null,null,null,null,null,null,null,null,null,"This template may require adjustments by individual operators to meet specific reporting requirements as defined in the site Permit(s)"]
[]
[]
[]
[]
[]
[]
[]
[]
[]
[]
[]
[]
[]
[]
[null,"Annual Performance Report 2020"]
[]
[null,"Permit EPR/AP3835SM"]
[]
[null,"Wolverhampton Energy from Waste Facility"]
[]
[null,"MES Environmental Ltd."]
[]
[]
[]
[null,"Year:",2020]
[]
[null,"Address:","MES Environmental Ltd, Crown Street, Wolverhampton, WV1 1QB"]
[]
[null,"Tel: ","01902 458888"]
[]
[null,"Email: ","mes@mesenvironmental.co.uk"]
[]
[null,"Prepared by:","J Purnell",null,null,"Position:","Environmental Manager"]
[]
[null,"Approved by:","A Jackson ",null,null,"Position:","General Manager"]
[]
[null,"Version:",1]
[]
[null,"Issue Date:","2021-01-28"]

{"sheet":"Contents","index":1,"n_rows":44,"n_cols":11,"rows_kept":44,"cut":false,"hidden":false,"merged":[[43,0,46,9],[36,1,36,6],[37,1,37,6],[38,1,38,6],[39,1,39,6],[40,1,40,6],[41,1,41,6],[35,1,35,6],[21,1,21,6],[22,1,22,6],[23,1,23,6],[26,1,26,6],[27,1,27,6],[28,1,28,6],[29,1,29,6],[30,1,30,6],[31,1,31,6],[34,1,34,6],[20,1,20,6],[9,1,9,6],[10,1,10,6],[11,1,11,6],[12,1,12,6],[13,1,13,6],[14,1,14,6],[15,1,15,6],[16,1,16,6],[17,1,17,6],[18,1,18,6],[19,1,19,6],[4,10,7,14],[8,1,8,6],[3,1,3,6],[4,1,4,6],[5,1,5,6],[6,1,6,6],[7,1,7,6]]}
[{"$f":"+'Cover Page'!$B$29","v":"Annual Performance Report 2020"},null,null,null,{"$f":"+'Cover Page'!$B$33","v":"Wolverhampton Energy from Waste Facility"}]
[]
["Contents",null,null,null,null,null,null,null,null,null,"Notes:"]
[null,"Subject",null,null,null,null,null,"Page ",null,null,"Section references and Page nos. to be inserted"]
[null,"Facility Information",null,null,null,null,null,4,null,null,"Sections and Subjects may require adjustment by individual operators to meet specific reporting requirements as defined in the sites Permit(s)"]
[null,"Operational Data",null,null,null,null,null,5]
[null,"Operational Summary",null,null,null,null,null,7]
[null,"Performance Form 1",null,null,null,null,null,8]
[null,"Energy Form 1",null,null,null,null,null,10]
[null,"Permit Compliance",null,null,null,null,null,11]
[null,"Improvements",null,null,null,null,null,12]
[null,"Public Liaison",null,null,null,null,null,13]
[null,"Residue Quality - Optional",null,null,null,null,null,14]
[null,"Emissions to Water",null,null,null,null,null,15]
[null,"Emissions to Air (periodically monitored)",null,null,null,null,null,16]
[null,"Emissions to Air (continuously monitored)",null,null,null,null,null,17]
[null,"Hydrogen Chloride emissions",null,null,null,null,null,19]
[null,"Sulphur Dioxide emissions",null,null,null,null,null,20]
[null,"Oxides of Nitrogen emissions",null,null,null,null,null,21]
[null,"Total Organic Carbon emissions",null,null,null,null,null,22]
[null,"Particulate Matter emissions",null,null,null,null,null,23]
[null,"Carbon Monoxide emissions",null,null,null,null,null,24]
[null,"Ammonia emissions",null,null,null,null,null,25]
[]
[]
["Version Control"]
["Section","Information",null,null,null,null,null,"Date"]
[]
[]
[]
[]
[]
[]
["Distribution"]
["Copy","Name, Role",null,null,null,null,null,"No."]
[]
[]
[]
[]
[]
[]
[]
[]
["This report is required under the Industrial Emissions Directive’s Article 55(2) requirements on reporting and public information on waste incineration plants and co-incineration plants, which require the operator to produce an annual report on the functioning and monitoring of the plant and make it available to the public. "]

{"sheet":"Facility Info","index":2,"n_rows":22,"n_cols":11,"rows_kept":22,"cut":false,"hidden":false,"merged":[[4,0,17,8],[21,0,53,8],[4,10,13,13],[21,10,30,13]]}
[{"$f":"+'Cover Page'!$B$29","v":"Annual Performance Report 2020"},null,null,null,{"$f":"+'Cover Page'!$B$33","v":"Wolverhampton Energy from Waste Facility"}]
[]
["Plant Description and Design",null,null,null,null,null,null,null,null,null,"Notes:"]
[]
["The installation provides a sustainable method of waste disposal and recovery, predominantly for the area within the administrative boundary of Wolverhampton Metropolitan Borough Council, with smaller quantities of wastes accepted, where capacity and demand exists, from other local authorities within the general vicinity of the plant.\n\nWith two combustion lines operating with a combined capacity of up to 14 tonnes per hour, the facility is able to process a maximum of around 118,000 tonnes of waste per year, providing an effective alternative for sending the waste to landfill.\n \nHeat produced during the incineration process is converted to electrical energy by generating steam in high-pressure boilers and expanding the steam through a steam turbine.  When operating at full load, the plant will typically generate around 8 MW of electricity and, after satisfying its own power needs, exports approximately 7.1 MW of electricity to the grid. \n",null,null,null,null,null,null,null,null,null,"Include summary of plant design, design capacity, no. of combustion lines, electrical and heat capacity and any other general information that describes the facility, its location and purpose "]
[]
[]
[]
[]
[]
[]
[]
[]
[]
[]
[]
[]
[]
[]
["Summary of Operational Processes and Procedures"]
[]
["The Plant is regulated under the terms of a Permit issued by the Environment Agency (reference AP3835SM) which contains conditions to ensure that the requirements of the Waste Incineration Directive are incorporated and will be met. \nMES Environmental operates all of its sites under an Integrated Management System certified to ISO 14001:2015 (environmental management), ISO 9001:2015 (quality management), and ISO 18001:2007 (health and safety management).  The company also maintains the globally recognised RoSPA Gold standard award, all of which helps to ensure that the company operates responsibly, safely, and efficiently, with regard to all of its operations. \nIn terms of plant operation, the incineration processes have been designed against the background of a detailed assessment of the prevailing environmental conditions at the site location, and are based upon the Best Available Technology (BAT) as detailed both in the original Authorisation application and the application for the Permit issued under the Pollution Prevention and Control (England and Wales) Regulations.  These include, but are not limited to, the following:\n• Well proven process plant developed specifically for incineration of municipal solid wastes\n• Efficient, comprehensive process control and monitoring systems to ensure optimum conditions for complete combustion of the wastes and to minimise emissions from the processes\n• Operations confined within buildings under slight negative pressure in order to contain and minimise emissions such as dust and odour\n• Qualified and experienced operating and maintenance personnel to implement procedures to ensure that the required high standards are maintained. Operating and Maintenance Procedures are established according to an internationally recognised system of quality assurance\n• Multi-stage high efficiency flue gas cleaning systems comprising deNOx Selective Non-Catalytic Reduction (SNCR) for the removal of oxides of nitrogen, activated carbon and lime semi-dry acid gas scrubbing for controlling acid gas, dioxins/furans and mercury emissions\n• Final stage flue gas abatement for particulate materials using fabric filtration\n• Residues from the combustion process and from the flue gas cleaning system disposed of by approved means, maximising recycling wherever possible\n• Waste water from the process is neutralised and recycled as far as is practicable to minimise the quantities released to sewers\n• Provision of bunds or double skinned vessels for storage of fuel and chemicals in order to prevent accidental and inappropriate discharge to the public sewers and watercourse\n",null,null,null,null,null,null,null,null,null,"Include summary of key processes and procedures such as (but not limited to); waste reception, control rooms, grate, bed and boiler, energy & heat  generation, cooling systems, residue management, emission controls, health and safety systems, maintenance"]

{"sheet":"Operational Data","index":3,"n_rows":65,"n_cols":11,"rows_kept":65,"cut":false,"hidden":false,"merged":[[5,10,6,10],[7,10,18,10],[33,1,38,1],[30,2,30,5],[30,6,30,7],[3,1,3,2],[7,1,19,1],[23,1,26,1],[28,1,29,1],[52,0,56,0]]}
[{"$f":"+'Cover Page'!$B$29","v":"Annual Performance Report 2020"},null,null,null,{"$f":"+'Cover Page'!$B$33","v":"Wolverhampton Energy from Waste Facility"}]
[]
["Operational Data",null,null,null,null,null,null,null,null,null,"Notes:"]
["Plant Size",118000,null,"tonnes pa",0,"MWth",8,"MWe",null,null,"* - RDF to include SRF "]
["No. of combustion lines",2,null,"No. of Turbines:",null,1,null,null,null,null,"** - CHP plants only"]
[null,null,null,null,null,null,null,null,null,null,"2020 updates include;  heat in MWh, water in Litres, NCV in MJ/kg"]
["Waste types received","Unit","Q1","Q2","Q3","Q4","Year Total","%"]
["Household / Local Authority","tonnes",28610.716989233108,28064.297379707812,23484.548516439456,29607.689434724089,{"$f":"SUM(C8:F8)","v":109767.25232010447},{"$f":"IF(G8>0,G8/$G$18,\"-\")","v":0.95929431785103314},null,null,"Availabiity Definition: 'the availability of a line is to be calculated by the number of hours the line reported Continuously Monitored emission levels to the Regulator through the calendar year divided by the total number of hours in that year. \nThe overall plant availability is calculated as the Mean of all lines in the plant. For clarity this includes periods of Other Than Normal Operating Conditions (OTNOC) and abnormal operation.'  \n\nRationale: The primary function of an Energy from Waste facility is the disposal of waste. It follows therefore that the availability of a plant is determined by the period of time a facility spends undertaking this activity."]
["Commercial & Industrial ",null,1690.2830107668935,1774.7026202921861,155.45148356054531,1037.3105652759084,{"$f":"SUM(C9:F9)","v":4657.7476798955331},4.070568214896686E-2]
["Hazardous ",null,0,0,0,0,0,"-"]
["Clinical",null,0,0,0,0,0,"-"]
["Waste wood (biomass) ",null,0,0,0,0,0,"-"]
["Refuse Derived Fuel * - H'hold/LA",null,0,0,0,0,{"$f":"SUM(C13:F13)","v":0},"-"]
["Refuse Derived Fuel *  - C&I",null,0,0,0,0,0,"-"]
["Other [Please specify]",null,0,0,null,0,0,"-"]
["Other [Please specify]",null,0,0,0,0,0,"-"]
["Other [Please specify]",null,0,0,0,0]
["Total waste received",null,{"$f":"SUM(C8:C17)","v":30301},{"$f":"SUM(D8:D17)","v":29839},{"$f":"SUM(E8:E17)","v":23640},{"$f":"SUM(F8:F17)","v":30644.999999999996},{"$f":"SUM(G8:G17)","v":114425},1]
["Rejected Waste ",null,0,0,0,0,{"$f":"SUM(C19:F19)","v":0},{"$f":"IF(G19>0,G19/$G$18,\"-\")","v":"-"}]
["Unprocessed waste transferred out",null,0,0,759,0,759,{"$f":"IF(G20>0,G20/$G$18,\"-\")","v":6.6331658291457285E-3}]
["Total waste combusted",null,{"$f":"C18-SUM(C19:C20)","v":30301},{"$f":"D18-SUM(D19:D20)","v":29839},22881,30644.999999999996,{"$f":"SUM(C21:F21)","v":113666},{"$f":"IF(G21>0,G21/$G$18,\"-\")","v":0.99336683417085425}]
[]
["Energy Usage / Export","Unit","Q1","Q2","Q3","Q4","Year Total","KWh/te"]
["Power Generated","MWh",13842,11770,8640,12375,{"$f":"SUM(C24:F24)","v":46627},{"$f":"IF(G24>0,G24*1000/$G$21,\"-\")","v":410.21061707106787}]
["Power Exported",null,11524,9630,7086,10347,{"$f":"SUM(C25:F25)","v":38587},{"$f":"IF(G25>0,G25*1000/$G$21,\"-\")","v":339.4770643816093}]
["Power Used on site",null,2318,2140,1554,2028,{"$f":"SUM(C26:F26)","v":8040},{"$f":"IF(G26>0,G26*1000/$G$21,\"-\")","v":70.733552689458591}]
["Power Imported",null,9.4,110.3,385.3,347.2,852.2,{"$f":"IF(G27>0,G27*1000/$G$21,\"-\")","v":7.4974046768602749}]
["Parasitic Load","%",{"$f":"IF(C24>0,1-C25/(C24+C27),\"-\")","v":0.16802633668798816},{"$f":"IF(D24>0,1-D25/(D24+D27),\"-\")","v":0.18941440872705229},{"$f":"IF(E24>0,1-E25/(E24+E27),\"-\")","v":0.21487374380906998},{"$f":"IF(F24>0,1-F25/(F24+F27),\"-\")","v":0.18669726934020847},{"$f":"IF(G24>0,1-G25/(G24+G27),\"-\")","v":0.18728622217729018}]
["Thermal Energy Produced **","MWh",0,0,0,0,{"$f":"SUM(C29:F29)","v":0},{"$f":"IF(G29>0,G29*1000/$G$18,\"-\")","v":"-"}]
["Thermal Energy Exported **",null,0,0,0,0,0,"-"]
["R1 value",null,"n/a",null,null,null,"Design / Operational / n/a"]
[]
["Waste Disposal & Recovery","Unit","Q1","Q2","Q3","Q4","Year Total","% inputs"]
["APC Residues - produced","tonnes",968,903,739,981,{"$f":"SUM(C34:F34)","v":3591},{"$f":"IF(G34>0,G34/$G$21,\"-\")","v":3.1592560660179826E-2}]
["IBA - produced",null,4574,5268,4120,4835,18797,{"$f":"IF(G35>0,G35/$G$21,\"-\")","v":0.16537047138106381}]
["Metals recycling",null,395,425,327,438,{"$f":"SUM(C36:F36)","v":1585},{"$f":"IF(G36>0,G36/$G$21,\"-\")","v":1.394436331004874E-2}]
["Other",null,0,0,0,0,{"$f":"SUM(C37:F37)","v":0},{"$f":"IF(G37>0,G37/$G$18,\"-\")","v":"-"}]
["Other",null,0,0,0,0,0,{"$f":"IF(G38>0,G38/$G$18,\"-\")","v":"-"}]
["Other",null,0,0,0,0,0,{"$f":"IF(G39>0,G39/$G$18,\"-\")","v":"-"}]
[]
["Raw Material Usage","Unit","Q1","Q2","Q3","Q4","Year Total","kg or Ltr /te"]
["Mains Water","ltrs",11064,11639,9653,10351,{"$f":"SUM(C42:F42)","v":42707},{"$f":"IF(G42>0,G42/$G$21,\"-\")","v":0.37572361128217763}]
["Other Water","ltrs",0,0,0,0,0,"-"]
["Ammonia","kgs",0,0,0,0,0,"-"]
["Urea","kgs",98000,83000,72000,73000,{"$f":"SUM(C45:F45)","v":326000},2.8680520120352613]
["Activated Carbon","kgs",1500,500,500,0,2500,2.1994263895975929E-2]
["Lime / hydrated lime","kgs",228320,257220,226780,286000,998320,8.7829254130522756]
["Fuel oil","ltrs",22840,21493,36654,27615,108602,0.95544841905231115]
["Gas","cf",0,0,0,0,0]
["Other",null,0,0,0,0,0]
[]
["Summary ","Line/Unit","Q1","Q2","Q3","Q4","Year Total",null,null,"Hrs in year "]
["Availability of waste combustion by line, hrs",1,2181,1959.5,1733,2124.5,{"$f":"SUM(C53:F53)","v":7998},0.91049999999999998,null,8760]
[null,2,2073,2179,1682.5,2167.5,8102,0.9224]
[]
[]
[]
["Overall Availability, mean avg. of all lines, hrs",null,{"$f":"AVERAGE(C53:C54)","v":2127},{"$f":"AVERAGE(D53:D54)","v":2069.25},1707.75,2146,{"$f":"AVERAGE(G53:G54)","v":8050},{"$f":"AVERAGE(H53:H54)","v":0.91644999999999999}]
["Hours of turbine operations, hrs",1,2173,2089,1506,1836.5,7604.5,0.86570000000000003]
[]
[]
["Net Calorific Value of waste","MJ/kg",8,7.81,7.91,7.92,null,"-"]
["Abnormal Events","qty.",0,0,1,0,1,{"$f":"IF(G63>0,\"yes\",\"no\")","v":"yes"}]
["Abnormal operation","hours",0,0,0.5,0,0.5,{"$f":"+(G64)/J53","v":5.7077625570776254E-5}]
["Permit Breaches","qty.",4,3,4,1,12,{"$f":"IF(G65>0,\"yes\",\"no\")","v":"yes"}]

{"sheet":"Operational Summary","index":4,"n_rows":31,"n_cols":11,"rows_kept":31,"cut":false,"hidden":false,"merged":[[4,0,26,8],[30,0,51,8],[4,10,13,13],[30,10,39,13]]}
[{"$f":"+'Cover Page'!$B$29","v":"Annual Performance Report 2020"},null,null,null,{"$f":"+'Cover Page'!$B$33","v":"Wolverhampton Energy from Waste Facility"}]
[]
["Summary of Plant Operations and Maintenance during the reporting year",null,null,null,null,null,null,null,null,null,"Notes:"]
[]
["2020 has been a challenging year with direct and indirect effects of COVID-19. During the first lockdown period, the main challenges were with the availability of parts and service suppliers. Towards the end of 2020 the problems have been with our own staff, both suffering infections or self-isolating due to infection of family members.\n2020 statutory inspections were delayed due to the pandemic and were finally completed in September. There were a few additional minor shutdowns for tube leaks and grate repairs but overall availability for the year was still above 90%.\nSignificant additional works completed during the annual shutdown were a major overhaul of the generator, a larger than usual program of tube replacements on boiler 2 and the replacement of a complete fly ash screw conveyor. Significant works completed outside the annual shutdown were the overhaul of the tap changer on the 33/11KV transformer, overhaul of the steam turbine governor linkages, recovering of the tipping hall roof, the replacement of the baghouse cladding and major repairs to No.2 ACC fan drive.\nThere has been a significant amount of work done across the plant on health & safety projects including the installation of additional power supplies to reduce the amount of trailing leads during shutdowns, the installation of a fume extraction system for use by welders during boiler internal repairs plus additional fixed ventilation for general fresh air supply in the same area. A program of fitting spring-loaded gates instead of chains on vertical ladders has been commenced and finally a new, larger permit office has been created which is outside the main office block area and prevents the build-up of crowds in the narrow corridors.  \n\n",null,null,null,null,null,null,null,null,null,"Include summary of key operational and/or mainteanance activity undertaken in the year, such as any major component upgrades and/or replacements "]
[]
[]
[]
[]
[]
[]
[]
[]
[]
[]
[]
[]
[]
[]
[]
[]
[]
[]
[]
[]
[]
[]
[]
["Summary of Residue Handling for the reporting year"]
[]
["There are two main sources of residue that arise from the operation of the plant;  Incinerator Bottom ash (IBA) (which also includes ferrous metals discharged within the ash), and residues from the flue gas treatment system - known as Air Pollution Control residue (APCr).\n\nResidues from the flue gas treatment process (APCr) are discharged into an enclosed system which feed into double-skinned heavy-duty bags prior to removal from site for controlled treatment and disposal.  These residues account for around 5% of the total weight of all refuse processed by the facility.\n\nThe bottom ash produced by the site represents around 10% of the original volume of the refuse processed, and around 20% of its weight.  Bottom ash residues are discharged from the lower end of each grate into a water filled ash discharger, where it is quenched and then ejected onto a conveyor system. Larger items are screened out and ferrous metals are removed via magnetic separation.  \nThe resulting material is stored in the storage bunkers prior to removal from site for recycling - the storage capacity for bottom ash residues and separated ferrous metals is sufficient to ensure 4 days storage. Collections for delivery to further processing or treatment sites are made on Mondays to Fridays and are scheduled to ensure sufficient storage capacity is maintained at all times. Collections are available at weekends if operational conditions require this facility.\nBottom ash is now widely used in the UK and Europe as a substitute for valuable primary aggregate materials in the construction of roads and embankments.  Bottom ash from MES Environmental is currently being reprocessed, with additional ferrous and trace metals being removed, and the remaining material being further processed into usable aggregate in a zero to landfill process.",null,null,null,null,null,null,null,null,null,"Include in here a summary of residue handling regimes and destinations "]

{"sheet":"Perf. Form 1","index":5,"n_rows":54,"n_cols":10,"rows_kept":54,"cut":false,"hidden":false,"merged":[[47,0,47,1],[49,0,49,9],[50,0,51,9],[38,0,38,9],[39,0,40,9],[43,0,43,1],[43,2,43,9],[45,0,45,1],[46,0,46,1],[36,0,36,3],[36,4,36,5],[36,7,36,8],[37,0,37,3],[37,4,37,5],[37,7,37,8],[34,0,34,3],[34,4,34,5],[34,7,34,8],[35,0,35,3],[35,4,35,5],[35,7,35,8],[31,0,31,3],[31,7,31,8],[32,0,32,3],[32,4,32,5],[32,7,32,8],[33,0,33,3],[33,4,33,5],[33,7,33,8],[23,0,23,3],[23,4,23,5],[23,6,23,7],[23,8,23,9],[25,0,25,9],[26,0,28,9],[21,0,21,1],[21,2,21,3],[21,4,21,5],[21,6,21,7],[21,8,21,9],[22,0,22,3],[22,4,22,5],[22,6,22,7],[22,8,22,9],[19,0,19,1],[19,2,19,3],[19,4,19,5],[19,6,19,7],[19,8,19,9],[20,0,20,1],[20,2,20,3],[20,4,20,5],[20,6,20,7],[20,8,20,9],[17,0,17,1],[17,2,17,3],[17,4,17,5],[17,6,17,7],[17,8,17,9],[18,0,18,1],[18,2,18,3],[18,4,18,5],[18,6,18,7],[18,8,18,9],[15,0,15,1],[15,2,15,3],[15,4,15,5],[15,6,15,7],[15,8,15,9],[16,0,16,9],[13,0,13,1],[13,2,13,3],[13,4,13,5],[13,6,13,7],[13,8,13,9],[14,0,14,3],[14,4,14,5],[14,6,14,7],[14,8,14,9],[11,0,11,1],[11,2,11,3],[11,4,11,5],[11,6,11,7],[11,8,11,9],[12,0,12,1],[12,2,12,3],[12,4,12,5],[12,6,12,7],[12,8,12,9],[9,0,9,9],[10,0,10,1],[10,2,10,3],[10,4,10,5],[10,6,10,7],[10,8,10,9],[2,0,2,4],[2,6,2,8],[3,1,3,4],[5,3,5,4],[5,6,5,7],[8,0,8,1],[8,2,8,3],[8,4,8,5],[8,6,8,7],[8,8,8,9]]}
[{"$f":"+'Cover Page'!C39","v":2020}," Annual Reporting Performance Form 1"]
[]
[{"$f":"+'Cover Page'!B31","v":"Permit EPR/AP3835SM"},null,null,null,null,"Operator: ","MES Environmental"]
["Facility:",{"$f":"+'Cover Page'!B33:I33","v":"Wolverhampton Energy from Waste Facility"},null,null,null,"Form:","Performance 1"]
[]
["Reporting  Period from: ",null,null,"2020-01-01",null,"to:","2020-12-31"]
[]
[{"$f":"+A1","v":2020},"Annual Reporting of Waste Disposal and Recovery"]
["Waste Description",null,"Disposal Route(s)",null,"Disposal Tonnes",null,"Recovery Tonnes",null,"% / tonne of waste incinerated"]
["1) Hazardous Wastes"]
["APC Residues",null,"D13",null,{"$f":"'Operational Data'!G34","v":3591},null,null,null,{"$f":"IF((E11+G11)>0,(E11+G11)/'Operational Data'!$G$21, \"-\")","v":3.1592560660179826E-2}]
["IBA",null,null,null,null,null,null,null,{"$f":"IF((E12+G12)>0,(E12+G12)/'Operational Data'!$G$21, \"-\")","v":"-"}]
[null,null,null,null,null,null,null,null,{"$f":"IF((E13+G13)>0,(E13+G13)/'Operational Data'!$G$21, \"-\")","v":"-"}]
[null,null,null,null,null,null,null,null,{"$f":"IF((E14+G14)>0,(E14+G14)/'Operational Data'!$G$21, \"-\")","v":"-"}]
["Total Hazardous Waste",null,null,null,{"$f":"SUM(E11:F14)","v":3591},null,{"$f":"SUM(G11:H14)","v":0},null,{"$f":"IF((E15+G15)>0,(E15+G15)/'Operational Data'!$G$21, \"-\")","v":3.1592560660179826E-2}]
[]
["2) Non-Hazardous Wastes"]
["IBA",null,"R04",null,null,null,{"$f":"'Operational Data'!G35","v":18797},null,{"$f":"IF((E18+G18)>0,(E18+G18)/'Operational Data'!$G$21, \"-\")","v":0.16537047138106381}]
["Ferrous Metal",null,"R04",null,null,null,{"$f":"'Operational Data'!G36","v":1585},null,{"$f":"IF((E19+G19)>0,(E19+G19)/'Operational Data'!$G$21, \"-\")","v":1.394436331004874E-2}]
["Process Water",null,null,null,67,null,null,null,{"$f":"IF((E20+G20)>0,(E20+G20)/'Operational Data'!$G$21, \"-\")","v":5.8944627241215488E-4}]
[null,null,null,null,null,null,null,null,{"$f":"IF((E21+G21)>0,(E21+G21)/'Operational Data'!$G$21, \"-\")","v":"-"}]
[null,null,null,null,null,null,null,null,{"$f":"IF((E22+G22)>0,(E22+G22)/'Operational Data'!$G$21, \"-\")","v":"-"}]
["Total Non-Hazardous Waste",null,null,null,{"$f":"SUM(E18:F22)","v":67},null,{"$f":"SUM(G18:H22)","v":20382},null,{"$f":"IF((E23+G23)>0,(E23+G23)/'Operational Data'!$G$21, \"-\")","v":0.1799042809635247}]
["TOTAL WASTE",null,null,null,{"$f":"+E23+E15","v":3658},null,{"$f":"+G23+G15","v":20382},null,{"$f":"IF((E24+G24)>0,(E24+G24)/'Operational Data'!$G$21, \"-\")","v":0.21149684162370455}]
[]
["Operator’s comments :"]
[]
[]
[]
[]
[{"$f":"+A1","v":2020},"Annual Reporting of Water and Other Raw Material Usage"]
["Raw Material",null,null,null,"Usage",null,"Unit","Specific Useage",null,"Unit"]
["Mains Water",null,null,null,{"$f":"+'Operational Data'!G42","v":42707},null,"m3",{"$f":"IF(E33>0,E33/'Operational Data'!$G$21,\"-\")","v":0.37572361128217763},null,"m3/te"]
["Total Water",null,null,null,{"$f":"+'Operational Data'!G43+'Operational Data'!G42","v":42707},null,"m3",{"$f":"IF(E34>0,E34/'Operational Data'!$G$21,\"-\")","v":0.37572361128217763},null,"m3/te"]
["Urea / Ammonia",null,null,null,{"$f":"+'Operational Data'!G45","v":326000},null,"kg",{"$f":"IF(E35>0,E35/'Operational Data'!$G$21,\"-\")","v":2.8680520120352613},null,"kg/te"]
["Activated Carbon",null,null,null,{"$f":"+'Operational Data'!G46","v":2500},null,"kg",{"$f":"IF(E36>0,E36/'Operational Data'!$G$21,\"-\")","v":2.1994263895975929E-2},null,"kg/te"]
["Lime / hydrated lime / Sodium Bicarb.",null,null,null,{"$f":"+'Operational Data'!G47","v":998320},null,"kg",{"$f":"IF(E37>0,E37/'Operational Data'!$G$21,\"-\")","v":8.7829254130522756},null,"kg/te"]
[]
["Operator’s comments :"]
[]
[]
[]
[{"$f":"+A31","v":2020},"Annual Reporting of other performance indicators "]
["Parameter",null,"Results by Line"]
[null,null,"A1","A2","A3","A4","A5",null,"Turbine 1","Turbine 2"]
["Operating hours for the year, hours",null,{"$f":"'Operational Data'!G53","v":7998},{"$f":"'Operational Data'!G54","v":8102},null,null,null,null,{"$f":"'Operational Data'!G59","v":7604.5}]
["Number of periods of abnormal operation, qty.",null,1,0]
["Cumulative hours of abnormal operation for this year, hours",null,0.5,0]
[]
["Operator’s comments :"]
[]
[]
[]
["Signed: ","J Purnell",null,null,null,null,"Date:","2021-01-31"]

{"sheet":"Energy Form 1","index":6,"n_rows":29,"n_cols":8,"rows_kept":29,"cut":false,"hidden":false,"merged":[[15,0,15,2],[15,3,15,4],[15,6,15,8],[17,0,17,8],[18,0,24,8],[13,0,13,2],[13,3,13,4],[13,6,13,8],[14,0,14,2],[14,3,14,4],[14,6,14,8],[11,0,11,2],[11,3,11,4],[11,6,11,8],[12,0,12,2],[12,3,12,4],[12,6,12,8],[9,0,9,2],[9,3,9,4],[9,6,9,8],[10,0,10,2],[10,3,10,4],[10,6,10,8],[2,6,2,8],[4,1,4,4],[6,3,6,4],[6,6,6,7],[8,0,8,2],[8,3,8,4],[8,6,8,8]]}
[{"$f":"+'Cover Page'!C39","v":2020}," Annual Reporting of Energy Usage/Export"]
[]
[{"$f":"+'Cover Page'!B31","v":"Permit EPR/AP3835SM"},null,null,null,null,"Operator: ","MES Environmental"]
[]
["Facility:",{"$f":"+'Cover Page'!B33:I33","v":"Wolverhampton Energy from Waste Facility"},null,null,null,"Form:","Energy 1"]
[]
["Reporting  Period from: ",null,null,{"$f":"+'Perf. Form 1'!D6:E6","v":"2020-01-01"},null,"to:",{"$f":"+'Perf. Form 1'!G6:H6","v":"2020-12-31"}]
[]
["Energy Source",null,null,"Energy Usage",null,"Unit","Specific Useage (KWh/tonne incinerated"]
["Electricity Produced",null,null,{"$f":"+'Operational Data'!G24","v":46627},null,"MWh",{"$f":"+'Operational Data'!H24","v":410.21061707106787}]
["Electricity Imported   ",null,null,{"$f":"+'Operational Data'!G27","v":852.2},null,"MWh",{"$f":"+'Operational Data'!H27","v":7.4974046768602749}]
["Electricity Exported",null,null,{"$f":"+'Operational Data'!G25","v":38587},null,"MWh",{"$f":"+'Operational Data'!H25","v":339.4770643816093}]
["Gas Oil",null,null,null,null,"tonnes"]
["Steam/hot water exported",null,null,{"$f":"+'Operational Data'!G30","v":0},null,"GWh",{"$f":"+'Operational Data'!H30","v":"-"}]
[]
[]
[]
["Operator’s comments :"]
[]
[]
[]
[]
[]
[]
[]
[]
[]
[]
["Signed: ","J Purnell",null,null,null,null,"Date:","2021-01-31"]

{"sheet":"Permit Compliance","index":7,"n_rows":41,"n_cols":12,"rows_kept":41,"cut":false,"hidden":false,"merged":[[33,0,33,10],[18,0,18,10],[38,1,38,3],[38,4,38,6],[38,7,38,9],[34,1,34,3],[34,4,34,6],[34,7,34,9],[35,1,35,3],[35,4,35,6],[35,7,35,9],[23,1,23,3],[23,4,23,6],[23,7,23,9],[31,1,31,3],[31,4,31,6],[39,1,39,3],[39,4,39,6],[39,7,39,9],[36,1,36,3],[36,4,36,6],[36,7,36,9],[37,1,37,3],[37,4,37,6],[37,7,37,9],[31,7,31,9],[21,1,21,3],[21,4,21,6],[21,7,21,9],[22,1,22,3],[22,4,22,6],[22,7,22,9],[24,1,24,3],[25,1,25,3],[26,1,26,3],[28,1,28,3],[27,1,27,3],[29,1,29,3],[30,1,30,3],[24,4,24,6],[25,4,25,6],[19,1,19,3],[19,4,19,6],[19,7,19,9],[20,1,20,3],[20,4,20,6],[20,7,20,9],[16,2,16,4],[16,5,16,8],[15,2,15,4],[15,5,15,8],[16,0,16,1],[13,5,13,8],[14,0,14,1],[14,2,14,4],[14,5,14,8],[15,0,15,1],[7,0,7,1],[7,2,7,8],[8,0,8,1],[8,2,8,4],[8,5,8,8],[8,11,17,14],[40,4,40,8],[9,0,9,1],[9,2,9,4],[9,5,9,8],[10,0,10,1],[10,2,10,4],[10,5,10,8],[11,0,11,1],[11,2,11,4],[11,5,11,8],[12,0,12,1],[12,2,12,4],[12,5,12,8],[13,0,13,1],[13,2,13,4],[26,4,26,6],[27,4,27,6],[28,4,28,6],[29,4,29,6],[30,4,30,6],[29,7,29,8],[30,7,30,8],[24,7,24,8],[25,7,25,8],[26,7,26,8],[27,7,27,8],[28,7,28,8]]}
[{"$f":"+'Cover Page'!$B$29","v":"Annual Performance Report 2020"},null,null,null,{"$f":"+'Cover Page'!$B$33","v":"Wolverhampton Energy from Waste Facility"}]
[]
["Summary of Permit Compliance"]
[]
["Compliance with permit limits for continuously monitored pollutants"]
[]
["The plant met its emission limits as shown in the table below:"]
["Substance",null,"Percentage time compliant during operation",null,null,null,null,null,null,null,null,"Notes:"]
[null,null,"Half-hourly limit",null,null,"Daily limit",null,null,null,null,null,"Report to 2 decimal places, i.e. xx.xx%\n\nPlease provide a brief summary of each notification or non-compliance in the table (rather than just referring to notifications that were sent to the Regulator).  \n\n"]
["Particulates",null,1,null,null,1]
["Oxides of nitrogen",null,1,null,null,0.99729999999999996]
["Sulphur dioxide",null,1,null,null,1]
["Carbon monoxide",null,1,null,null,1]
["Total organic carbon",null,0.99970000000000003,null,null,1]
["Hydrogen chloride",null,0.99970000000000003,null,null,0.99729999999999996]
["Hydrogen fluoride",null,1,null,null,1]
["Average",null,0.99990000000000001,null,null,0.99919999999999998]
[]
["Summary of any notifications or non-compliances under the permit"]
["Date","Summary of notification or non-compliance [including Line/Reference]",null,null,"Reason ",null,null,"Measures taken to prevent reoccurrence"]
["2020-01-17","A1, HCl, Half hourly limit",null,null,"Rogue waste element",null,null,"Increased lime supply "]
["2020-03-04","A1, VOC, Half hourly limit",null,null,"Maintenance activity",null,null,"Procedure modified"]
["2020-03-21","A1, Nox, Daily limit",null,null,"Poor waste ",null,null,"Increased urea flow"]
["2020-03-22","A1, HCl, Daily  limit",null,null,"System blockage ",null,null,"Used stby, repaired unit"]
["2020-05-02","A1, VOC, Half hourly limit",null,null,"Rogue waste element",null,null,"Burners ignited"]
["2020-06-19","A2, HCl, Half hourly limit",null,null,"Rogue waste element",null,null,"Increased lime supply "]
["2020-06-27","A1, VOC, Half hourly limit",null,null,"Faulty O2 probe",null,null,"Equipment repaired"]
["2020-08-07","A1, HCl, Half hourly limit",null,null,"Rogue waste element",null,null,"Increased lime supply "]
["2020-08-13","A1, HCl, Half hourly limit",null,null,"Rogue waste element",null,null,"Increased lime supply "]
["2020-08-14","A2, VOC, Half hourly limit",null,null,"Wet waste ",null,null,"Better waste mixing "]
["2020-08-21","A1, VOC, Half hourly limit",null,null,"Wet waste ",null,null,"Better waste mixing "]
["2020-11-03","A1, HCl, Half hourly limit",null,null,"Rogue waste element",null,null,"Increased lime supply "]
[]
["Summary of any complaints received and actions to taken to resolve them."]
["Date","Summary of complaint [including Line/Reference]",null,null,"Reason *",null,null,"Measures taken to prevent reoccurrence"]
[]
[]
[]
[]
[]
[null,null,null,null,"* including whether substantiated by the operator or the EA"]

{"sheet":"Improvements","index":8,"n_rows":39,"n_cols":5,"rows_kept":39,"cut":false,"hidden":false,"merged":[[37,0,37,9],[38,0,47,9],[4,0,4,9],[5,0,13,9],[15,0,15,9],[16,0,24,9],[26,0,26,9],[27,0,35,9]]}
[{"$f":"+'Cover Page'!$B$29","v":"Annual Performance Report 2020"},null,null,null,{"$f":"+'Cover Page'!$B$33","v":"Wolverhampton Energy from Waste Facility"}]
[]
["Summary of Plant Improvements"]
[]
["Summary of any efficiency improvements that have been completed within the year."]
["LED lamp replacement and an enhanced cleaning regime on the ACC remain ongoing projects. \nImprovements in the steam turbine drainage system and replacement of some faulty valves on have resulted in improved performance from the air ejectors. This combined with a robust programme of air leak detection and repair has led to improved vacuum, which improves output from the turbine. \nWastewater recycling and reuse has been further improved with a new and improved filtration system combined with improved control and management of the system by the Ops staff.\nNew flowmeters have been fitted on the lime system dilution vessels and the lime turbine feeds, which will give more accurate control on lime dosing rates.\n"]
[]
[]
[]
[]
[]
[]
[]
[]
[]
["Summary of any permit improvement conditions that have been completed within the year and the resulting environmental benefits."]
["All permit improvement conditions were completed prior to 2020."]
[]
[]
[]
[]
[]
[]
[]
[]
[]
["Summary of any changes to the plant or operating techniques which required a variation to the permit and a summary of the resulting environmental impact."]
["No permit variations were required during 2020."]
[]
[]
[]
[]
[]
[]
[]
[]
[]
["Summary of any other improvements made to the plant or planned to be made and a summary of the resulting environmental benefits."]
["The lime turbine disc acid cleaning bath has been decommissioned and replaced with an ultrasonic cleaning bath – reduced use of chemicals plus a significant improvement in the life expectancy of the lime turbine discs. \nRepairs & upgrades to the lime milk preparation equipment to improve reliability and reduce leakage\nNew isolating valves and improved fan blowers have been fitted to the activated carbon dosing system, which has reduced activated carbon dust leakage. \nCivil works in the Urea dosing area to reduce the ingress of damp and improve reliability of the system\nBoth standby dust probes have been replaced with new upgraded units\nStream 2 FID replaced with new unit – heated pump upgrade carried out on the standby FID\nNew MIR fitted to Stream 1 and a reconditioned MIR fitted in stream 2 \nThe above analyser improvements combined with those carried out in 2019 have seen a marked reduction in call outs since the upgrades were carried out.\nNo.1 boiler air heater has developed a leak so replacement is planned for replacement during the 2021 annual shutdown. This should see similar improvements in underfire air temperatures to those seen on boiler 2 \n"]

{"sheet":"Public Liasion","index":9,"n_rows":29,"n_cols":5,"rows_kept":29,"cut":false,"hidden":false,"merged":[[23,0,24,1],[23,2,24,9],[25,0,26,1],[25,2,26,9],[28,0,28,9],[17,0,18,1],[17,2,18,9],[19,0,20,1],[19,2,20,9],[21,0,22,1],[21,2,22,9],[16,0,16,1],[16,2,16,9],[5,0,5,1],[5,2,5,9],[6,0,7,1],[6,2,7,9],[8,0,9,1],[8,2,9,9],[10,0,11,1],[10,2,11,9],[12,0,13,1],[12,2,13,9],[15,0,15,9]]}
[{"$f":"+'Cover Page'!$B$29","v":"Annual Performance Report 2020"},null,null,null,{"$f":"+'Cover Page'!$B$33","v":"Wolverhampton Energy from Waste Facility"}]
[]
["Details of Public & Stakeholder Liasion"]
[]
["Summary of events held during the reporting year."]
["Date",null,"Description"]
["Across 2020",null,"MESE conducts monthly meetings with its core stakeholders in order discuss operational, health and safety, and environmental performance."]
[]
[]
[]
[]
[]
[]
[]
[]
["List of events planned for next year"]
["Date",null,"Description"]
[2021,null,"MESE will continue to meet with its core stakeholders on a monthly basis."]
[]
[]
[]
[]
[]
[]
[]
[]
[]
[]
["If you wish to be involved in the public liasion programme, please contact _________________"]

{"sheet":"Residue Quality ","index":10,"n_rows":36,"n_cols":6,"rows_kept":36,"cut":false,"hidden":false,"merged":[[35,0,40,6],[32,3,32,4],[34,0,34,6],[27,0,28,1],[29,0,29,1],[30,0,30,1],[31,0,31,1],[32,0,32,1],[29,3,29,4],[30,3,30,4],[29,5,29,6],[30,5,30,6],[31,5,31,6],[32,5,32,6],[20,0,21,1],[20,2,21,6],[22,0,23,1],[22,2,23,6],[31,3,31,4],[27,2,28,2],[28,3,28,4],[28,5,28,6],[27,3,27,6],[26,0,26,6],[5,0,6,6],[7,0,8,6],[9,0,10,6],[14,0,15,1],[14,2,15,6],[16,0,17,1],[16,2,17,6],[18,0,19,1],[18,2,19,6],[12,0,12,6],[13,0,13,1],[13,2,13,6]]}
[{"$f":"+'Cover Page'!$B$29","v":"Annual Performance Report 2020"},null,null,null,{"$f":"+'Cover Page'!$B$33","v":"Wolverhampton Energy from Waste Facility"}]
[]
["Residue Quality Monitoring Requirements"]
[]
["Summary of monitoring undertaken and compliance"]
["24 sample IBA monitoring scheme undertaken as per the ESA protocol, All samples below the applicable hazard threshold."]
[]
["2 IBA samples taken direct from each unit's ash discharger and subjected to full hazard assessment against WM3 - both samples found to be below the hazard thresholds for all applicable hazard categories"]
[]
["Quarterly APCr monitoring performed.  "]
[]
[]
["Commentary on any specific events"]
["Date & Event",null,"Description"]
[]
[]
[]
[]
[]
[]
[]
[]
[]
[]
[]
[]
["Residue Quality Monitoring Results"]
["Parameter (unit) ",null,"Limit","Normal Operation "]
[null,null,null,"Bottom ash  ",null,"APC Residues"]
["Loss on Ignition (average %)",null,"<5%",2.68]
["Total Organic Carbon (average %)",null,"<3%",0.6]
["No. of Assessments Undertaken",null,"---",24]
["No. of Hazardous Results",null,"---",0]
[]
["Comments :"]
["The Loss on Ignition and TOC values above represent the average observed over all samples taken during 2020 (of which all fell within the 5% and 3% limits respectively)."]

{"sheet":"Water","index":11,"n_rows":30,"n_cols":10,"rows_kept":30,"cut":false,"hidden":false,"merged":[[29,0,29,2],[29,3,29,5],[26,0,26,2],[26,3,26,5],[27,0,27,2],[27,3,27,5],[28,0,28,2],[28,3,28,5],[23,0,23,2],[23,3,23,5],[24,0,24,2],[24,3,24,5],[25,0,25,2],[25,3,25,5],[21,0,21,9],[22,0,22,2],[22,3,22,5],[14,0,15,1],[14,2,15,9],[16,0,17,1],[16,2,17,9],[18,0,19,1],[18,2,19,9],[5,0,6,9],[7,0,8,9],[9,0,10,9],[12,0,12,9],[13,0,13,1],[13,2,13,9]]}
[{"$f":"+'Cover Page'!$B$29","v":"Annual Performance Report 2020"},null,null,null,{"$f":"+'Cover Page'!$B$33","v":"Wolverhampton Energy from Waste Facility"}]
[]
["Emissions to Water"]
[]
["Summary of monitoring undertaken and compliance"]
["Annual sample taken and analysed.  All results below limits given in discharge consent.  "]
[]
["Waste water arising from the process is neutralised and recycled as far as is practicible in order to minimise the quantity released to sewer."]
[]
[]
[]
[]
["Commentary on any specific events"]
["Date & Event",null,"Description"]
[]
[]
[]
[]
[]
[]
[]
["Emissions to Water / Sewer"]
["Parameter",null,null,"Monitoring Frequency",null,null,"Limit","Target","Max.","Average"]
["pH",null,null,"Continuous",null,null,"6 - 10","6 - 10",9.1999999999999993,7.92]
["Total Suspended Solids (TSS)",null,null,"Annual",null,null,"400 mg/L","<400 mg/L",53.6,53.6]
["Chemical Oxygen Demand (COD)",null,null,"Annual",null,null,"800 mg/L","<800 mg/L",29,29]
["Zinc ",null,null,"Annual",null,null,"5 mg/L","<5 mg/L",0.109,0.109]
["Sulphate",null,null,"Annual",null,null,"1000 mg/L","<1000 mg/L",53.6,53.6]
["Phosphorus",null,null,"Annual",null,null,"25 mg/L","<25 mg/L",1.0900000000000001,1.0900000000000001]
["Oil",null,null,"Annual",null,null,"nil","nil","nil","nil"]

{"sheet":"Air (periodic)","index":12,"n_rows":39,"n_cols":13,"rows_kept":39,"cut":false,"hidden":false,"merged":[[18,3,18,4],[27,3,27,4],[33,3,33,4],[19,3,19,4],[20,3,20,4],[21,3,21,4],[22,3,22,4],[23,3,23,4],[24,3,24,4],[31,3,31,4],[25,3,25,4],[26,3,26,4],[28,3,28,4],[13,3,13,4],[14,3,14,4],[15,3,15,4],[16,3,16,4],[17,3,17,4],[38,0,38,9],[19,0,19,1],[20,0,20,1],[21,0,21,1],[34,3,34,4],[35,3,35,4],[33,0,33,1],[34,0,34,1],[35,0,35,1],[36,0,36,1],[24,0,24,1],[32,3,32,4],[39,0,40,9],[25,0,25,1],[26,0,26,1],[22,0,22,1],[23,0,23,1],[37,0,37,1],[27,0,27,1],[28,0,28,1],[29,0,29,1],[30,0,30,1],[31,0,31,1],[32,0,32,1],[37,3,37,4],[29,3,29,4],[30,3,30,4],[36,3,36,4],[16,0,16,1],[17,0,17,1],[18,0,18,1],[13,0,13,1],[14,0,14,1],[15,0,15,1],[12,0,12,1],[11,3,11,4],[12,3,12,4],[9,0,10,1],[9,5,9,9],[9,3,10,4],[9,2,10,2],[5,12,8,15],[9,12,11,15],[8,0,8,9],[5,0,6,9],[11,0,11,1]]}
[{"$f":"+'Cover Page'!$B$29","v":"Annual Performance Report 2020"},null,null,null,{"$f":"+'Cover Page'!$B$33","v":"Wolverhampton Energy from Waste Facility"}]
[]
["Emissions to Air (periodically monitored)"]
[]
["Summary of monitoring undertaken, standards used and compliance",null,null,null,null,null,null,null,null,null,null,null,"Notes:"]
["Periodic monitoring of the substances listed below are undertaken as per the conditions listed in the permit.",null,null,null,null,null,null,null,null,null,null,null,"Template may require adjustment for any bespoke monitoring requirements of permit. "]
[]
[]
["Results of emissions to air that are periodically monitored"]
["Substance",null,"Ref. Period","Emission Limit Value",null,"Average",null,null,null,null,null,null,"User to add additional tables as necessary, depending on whether quarterly or bi-annual reporting is required for the compliance year"]
[null,null,null,null,null,"A1","A2","A3","A4","A5"]
["Hydrogen fluoride",null,"1 hr","2 mg/m3",null,4.4999999999999998E-2,0.02]
["Cd and Th and their compounds",null,"6-8hrs","0.05 mg/m3",null,1.725E-3,1.1749999999999998E-3]
["Hg and its compounds",null,"6-8hrs","0.05 mg/m3",null,5.6249999999999998E-3,2.2000000000000001E-3]
["Sb, As, Pb, Cr, Co, Cu, Mn, Ni, V and their compounds",null,"6-8hrs","0.5 mg/m3",null,6.9199999999999998E-2,5.4675000000000001E-2]
["Dioxins & Furans (I-TEQ)",null,"6-8hrs","0.1 ng/m3",null,5.5550000000000002E-2,1.7899999999999999E-2]
["PCBs (WHO-TEQ Humans / Mammals)",null,"6-8hrs","None set ng/m3",null,2.8500000000000001E-3,8.4999999999999995E-4]
["PCBs (WHO-TEQ Fish)",null,"6-8hrs","None set ng/m3",null,1.9999999999999998E-4,6.0000000000000002E-5]
["PCBs (WHO-TEQ Birds)",null,"6-8hrs","None set ng/m3",null,6.1000000000000004E-3,2.15E-3]
["Dioxins & Furans (WHO-TEQ Humans / Mammals)",null,"6-8hrs","None set ng/m3",null,5.1599999999999993E-2,1.6550000000000002E-2]
["Dioxins & Furans (WHO-TEQ Fish)",null,"6-8hrs","None set ng/m3",null,5.8700000000000002E-2,1.9099999999999999E-2]
["Dioxins & Furans (WHO-TEQ Birds)",null,"6-8hrs","None set ng/m3",null,0.10339999999999999,3.1150000000000001E-2]
["Anthanthrene",null,"6-8hrs","None set µg/m3",null,1.315E-2,1.2799999999999999E-2]
["Benzo(a)anthracene",null,"6-8hrs","None set µg/m3",null,1.4800000000000001E-2,1.6799999999999999E-2]
["Benzo(a)pyrene",null,"6-8hrs","None set µg/m3",null,1.315E-2,1.2799999999999999E-2]
["Benzo(b)fluoranthene",null,"6-8hrs","None set µg/m3",null,1.355E-2,1.35E-2]
["Benzo(b)naptho(2,1-d) thiophene",null,"6-8hrs","None set µg/m3",null,1.89E-2,1.7899999999999999E-2]
["Benzo(c)phenanthrene",null,"6-8hrs","None set µg/m3",null,1.8100000000000002E-2,2.1950000000000001E-2]
["Benzo(ghi)perylene",null,"6-8hrs","None set µg/m3",null,1.315E-2,1.6449999999999999E-2]
["Benzo(k)fluoranthene",null,"6-8hrs","None set µg/m3",null,1.315E-2,1.2799999999999999E-2]
["Cholanthrene",null,"6-8hrs","None set µg/m3",null,1.685E-2,1.6449999999999999E-2]
["Chrysene",null,"6-8hrs","None set µg/m3",null,1.44E-2,0.15404999999999999]
["Cyclopenta(cd)pyrene",null,"6-8hrs","None set µg/m3",null,1.8100000000000002E-2,1.7899999999999999E-2]
["Dibenzo(ai)pyrene",null,"6-8hrs","None set µg/m3",null,2.0549999999999999E-2,2.01E-2]
["Dibenzo(ah)anthracene",null,"6-8hrs","None set µg/m3",null,1.315E-2,1.2799999999999999E-2]
["Fluoranthene",null,"6-8hrs","None set µg/m3",null,6.4049999999999996E-2,0.53254999999999997]
["Indeno(123-cd) pyrene",null,"6-8hrs","None set µg/m3",null,1.315E-2,1.2799999999999999E-2]
["Naphthalene",null,"6-8hrs","None set µg/m3",null,3.15035,3.9683000000000002]
["Comments :"]

{"sheet":"Air (CEMS)","index":13,"n_rows":28,"n_cols":16,"rows_kept":28,"cut":false,"hidden":false,"merged":[[26,0,26,12],[28,0,29,12],[13,0,14,0],[5,0,6,12],[7,0,8,12],[10,0,10,12],[11,0,12,0],[11,2,12,2],[11,1,12,1],[11,3,11,4],[11,5,11,6],[11,7,11,8],[11,9,11,10],[11,11,11,12]]}
[{"$f":"+'Cover Page'!$B$29","v":"Annual Performance Report 2020"},null,null,null,null,null,null,null,{"$f":"+'Cover Page'!$B$33","v":"Wolverhampton Energy from Waste Facility"}]
[]
["Emissions to Air (continously monitored)"]
[null,null,null,null,null,null,null,null,null,null,null,null,null,null,null,"Notes:"]
["Summary of monitoring undertaken, standards used and compliance",null,null,null,null,null,null,null,null,null,null,null,null,null,null,"Template may require adjustment for any bespoke monitoring requirements of permit"]
["The substances below are continuously monitored by the plant.  Average and maximum emissions are recorded below.",null,null,null,null,null,null,null,null,null,null,null,null,null,null,"Report to 2 decimal places, i.e. xx.xx%"]
[]
[]
[]
[]
["Results of emissions to air that are continuously monitored (maximum and average values for each line)"]
["Substance","Reference Period","Emission Limit Value","A1",null,"A2",null,"A3",null,"A4",null,"A5"]
[null,null,null,"Max.","Avg.","Max.","Avg.","Max.","Avg.","Max.","Avg.","Max.","Avg."]
["Oxides of nitrogen","Daily mean","200 mg/m3 ",{"$f":"NOx!O19","v":210},{"$f":"NOx!N19","v":183.66666666666666},{"$f":"NOx!O34","v":198},{"$f":"NOx!N34","v":184.41666666666666}]
[null,"½ hourly mean","400 mg/m3 ",{"$f":"NOx!M19","v":372},{"$f":"NOx!L19","v":183.66666666666666},{"$f":"NOx!M34","v":396},{"$f":"NOx!L34","v":184.41666666666666}]
["Particulates","Daily mean","10 mg/m3",{"$f":"Particulates!O19","v":7},{"$f":"Particulates!N19","v":0.62333333333333341},{"$f":"Particulates!O34","v":2},{"$f":"Particulates!N34","v":8.8333333333333333E-2}]
[null,"½ hourly mean","30 mg/m3 ",{"$f":"Particulates!M19","v":21},{"$f":"Particulates!L19","v":0.62333333333333341},{"$f":"Particulates!M34","v":4},{"$f":"Particulates!L34","v":8.8333333333333333E-2}]
["Total Organic Carbon ","Daily mean","10 mg/m3 ",{"$f":"TOC!O19","v":4},{"$f":"TOC!N19","v":0.58333333333333337},{"$f":"TOC!O34","v":5},{"$f":"TOC!N34","v":0.33333333333333331}]
[null,"½ hourly mean","20 mg/m3 ",{"$f":"TOC!M19","v":25},{"$f":"TOC!L19","v":0.58333333333333337},{"$f":"TOC!M34","v":23},{"$f":"TOC!L34","v":0.33333333333333331}]
["Hydrogen chloride ","Daily mean","10 mg/m3 ",{"$f":"HCl!O19","v":13},{"$f":"HCl!N19","v":6.75},{"$f":"HCl!O34","v":10},{"$f":"HCl!N34","v":7.333333333333333}]
[null,"½ hourly mean","60 mg/m3 ",{"$f":"HCl!M19","v":196},{"$f":"HCl!L19","v":6.75},{"$f":"HCl!M34","v":100},{"$f":"HCl!L34","v":7.333333333333333}]
["Sulphur dioxide","Daily mean","50 mg/m3 ",{"$f":"'SO2'!O19","v":39},{"$f":"'SO2'!N19","v":24.833333333333332},{"$f":"'SO2'!O34","v":33},{"$f":"'SO2'!N34","v":22.916666666666668}]
[null,"½ hourly mean","200 mg/m3 ",{"$f":"'SO2'!M19","v":102},{"$f":"'SO2'!L19","v":24.833333333333332},{"$f":"'SO2'!M34","v":184},{"$f":"'SO2'!L34","v":22.916666666666668}]
["Carbon monoxide ","Daily mean","50 mg/m3 ",{"$f":"'CO 95% 10 min'!Q19","v":30},{"$f":"'CO 95% 10 min'!P19","v":8},{"$f":"'CO 95% 10 min'!Q34","v":35},{"$f":"'CO 95% 10 min'!P34","v":14.416666666666666}]
[null,"95%ile 10-min avg *","150 mg/m3 *",{"$f":"'CO 95% 10 min'!O19","v":196},{"$f":"'CO 95% 10 min'!N19","v":8},{"$f":"'CO 95% 10 min'!O34","v":176},{"$f":"'CO 95% 10 min'!N34","v":14.416666666666666}]
[" Ammonia","Daily mean","No limit set",{"$f":"'NH3'!O19","v":21},{"$f":"'NH3'!N19","v":2.6666666666666665},{"$f":"'NH3'!O34","v":10},{"$f":"'NH3'!N34","v":2.6666666666666665}]
["* = delete or amend as appropriate"]
["Comments :"]

{"sheet":"HCl","index":14,"n_rows":79,"n_cols":17,"rows_kept":79,"cut":false,"hidden":false,"merged":[[12,16,15,18],[51,9,63,9],[66,9,78,9],[4,9,4,14],[4,1,4,3],[4,4,4,6],[48,0,51,6],[47,0,47,6],[6,9,18,9],[21,9,33,9],[36,9,48,9],[3,16,7,18],[9,16,11,18]]}
[{"$f":"+'Cover Page'!$B$29","v":"Annual Performance Report 2020"},null,null,null,{"$f":"+'Cover Page'!$B$33","v":"Wolverhampton Energy from Waste Facility"}]
[]
["Monitoring of Hydrogen Chloride emissions",null,null,"Whole Installation",null,null,"See  Notes in Cell Q3",null,null,{"$f":"+A3","v":"Monitoring of Hydrogen Chloride emissions"},null,null,null,"Per Combustion Line",null,null,"Notes:"]
[null,null,null,null,null,null,null,null,null,null,null,null,null,null,null,null,"User to add logic to complete Whole installation, Table A5:G18. From the data in Per Combustion Line, Table J6:O79, subject to No. of lines installed"]
["mg/Nm3","1/2 Hourly Reference Periods",null,null,"Daily Reference Periods"]
[{"$f":"+'Cover Page'!C39","v":2020},"1/2 hourly HCl ELV","Monthly 1/2 hourly mean","Highest 1/2 hourly maximum","Daily HCl ELV","Monthly daily mean","Highest daily maximum",null,null,{"$f":"+A6","v":2020},"mg/Nm3","Monthly 1/2 hourly mean","Monthly 1/2 hourly maximum","Monthly daily mean","Monthly daily maximum"]
["Jan",60,{"$f":"AVERAGE(L7,L22)","v":6},{"$f":"MAX(M7,M22)","v":61},10,{"$f":"AVERAGE(N7,N22)","v":6},{"$f":"MAX(O7,O22)","v":7},null,null,"A1","Jan",6,61,6,7]
["Feb",60,{"$f":"AVERAGE(L8,L23)","v":7.5},{"$f":"MAX(M8,M23)","v":59},10,{"$f":"AVERAGE(N8,N23)","v":7.5},{"$f":"MAX(O8,O23)","v":9},null,null,null,"Feb",7,25,7,8]
["Mar",60,7.5,196,10,7.5,13,null,null,null,"Mar",7,196,7,13,null,"Whole Installation table A5:G18:"]
["Apr",60,7.5,36,10,7.5,8,null,null,null,"Apr",7,36,7,8,null,"Mean: for 1/2 hourly and daily periods calculate mean of values across all operational combustion lines for the month"]
["May",60,7,45,10,7,8,null,null,null,"May",7,26,7,8]
["Jun",60,6.5,100,10,6.5,9,null,null,null,"Jun",6,40,6,8]
["Jul",60,7.5,33,10,7.5,8,null,null,null,"Jul",8,33,8,8,null,"Maximum: for 1/2 hourly and daily periods use the highest value across all operational combustion lines for the month"]
["Aug",60,7.5,96,10,7.5,10,null,null,null,"Aug",7,96,7,10]
["Sep",60,6.5,53,10,6.5,10,null,null,null,"Sep",6,24,6,8]
["Oct",60,7.5,30,10,7.5,10,null,null,null,"Oct",7,30,7,9]
["Nov",60,7,69,10,7,9,null,null,null,"Nov",7,69,7,9]
["Dec",60,6.5,53,10,6.5,8,null,null,null,"Dec",6,22,6,7]
[null,null,null,null,null,null,null,null,null,null,"Annual",{"$f":"AVERAGE(L7:L18)","v":6.75},{"$f":"MAX(M7:M18)","v":196},{"$f":"AVERAGE(N7:N18)","v":6.75},{"$f":"MAX(O7:O18)","v":13}]
[]
[null,null,null,null,null,null,null,null,null,{"$f":"+A6","v":2020},"mg/Nm3","Monthly 1/2 hourly mean","Monthly 1/2 hourly maximum","Monthly daily mean","Monthly daily maximum"]
[null,null,null,null,null,null,null,null,null,"A2","Jan",6,35,6,7]
[null,null,null,null,null,null,null,null,null,null,"Feb",8,59,8,9]
[null,null,null,null,null,null,null,null,null,null,"Mar",8,46,8,10]
[null,null,null,null,null,null,null,null,null,null,"Apr",8,30,8,8]
[null,null,null,null,null,null,null,null,null,null,"May",7,45,7,8]
[null,null,null,null,null,null,null,null,null,null,"Jun",7,100,7,9]
[null,null,null,null,null,null,null,null,null,null,"Jul",7,33,7,8]
[null,null,null,null,null,null,null,null,null,null,"Aug",8,51,8,9]
[null,null,null,null,null,null,null,null,null,null,"Sep",7,53,7,10]
[null,null,null,null,null,null,null,null,null,null,"Oct",8,27,8,10]
[null,null,null,null,null,null,null,null,null,null,"Nov",7,28,7,9]
[null,null,null,null,null,null,null,null,null,null,"Dec",7,53,7,8]
[null,null,null,null,null,null,null,null,null,null,"Annual",{"$f":"AVERAGE(L22:L33)","v":7.333333333333333},{"$f":"MAX(M22:M33)","v":100},{"$f":"AVERAGE(N22:N33)","v":7.333333333333333},{"$f":"MAX(O22:O33)","v":10}]
[]
[null,null,null,null,null,null,null,null,null,{"$f":"+A6","v":2020},"mg/Nm3","Monthly 1/2 hourly mean","Monthly 1/2 hourly maximum","Monthly daily mean","Monthly daily maximum"]
[null,null,null,null,null,null,null,null,null,"A3","Jan"]
[null,null,null,null,null,null,null,null,null,null,"Feb"]
[null,null,null,null,null,null,null,null,null,null,"Mar"]
[null,null,null,null,null,null,null,null,null,null,"Apr"]
[null,null,null,null,null,null,null,null,null,null,"May"]
[null,null,null,null,null,null,null,null,null,null,"Jun"]
[null,null,null,null,null,null,null,null,null,null,"Jul"]
[null,null,null,null,null,null,null,null,null,null,"Aug"]
[null,null,null,null,null,null,null,null,null,null,"Sep"]
[null,null,null,null,null,null,null,null,null,null,"Oct"]
[null,null,null,null,null,null,null,null,null,null,"Nov"]
["Comments :",null,null,null,null,null,null,null,null,null,"Dec"]
[null,null,null,null,null,null,null,null,null,null,"Annual",{"$f":"AVERAGE(L37:L48)","v":{"$error":"#DIV/0!"}},{"$f":"MAX(M37:M48)","v":0},{"$f":"AVERAGE(N37:N48)","v":{"$error":"#DIV/0!"}},{"$f":"MAX(O37:O48)","v":0}]
[]
[null,null,null,null,null,null,null,null,null,{"$f":"+A6","v":2020},"mg/Nm3","Monthly 1/2 hourly mean","Monthly 1/2 hourly maximum","Monthly daily mean","Monthly daily maximum"]
[null,null,null,null,null,null,null,null,null,"A4","Jan"]
[null,null,null,null,null,null,null,null,null,null,"Feb"]
[null,null,null,null,null,null,null,null,null,null,"Mar"]
[null,null,null,null,null,null,null,null,null,null,"Apr"]
[null,null,null,null,null,null,null,null,null,null,"May"]
[null,null,null,null,null,null,null,null,null,null,"Jun"]
[null,null,null,null,null,null,null,null,null,null,"Jul"]
[null,null,null,null,null,null,null,null,null,null,"Aug"]
[null,null,null,null,null,null,null,null,null,null,"Sep"]
[null,null,null,null,null,null,null,null,null,null,"Oct"]
[null,null,null,null,null,null,null,null,null,null,"Nov"]
[null,null,null,null,null,null,null,null,null,null,"Dec"]
[null,null,null,null,null,null,null,null,null,null,"Annual",{"$f":"AVERAGE(L52:L63)","v":{"$error":"#DIV/0!"}},{"$f":"MAX(M52:M63)","v":0},{"$f":"AVERAGE(N52:N63)","v":{"$error":"#DIV/0!"}},{"$f":"MAX(O52:O63)","v":0}]
[]
[null,null,null,null,null,null,null,null,null,{"$f":"+A6","v":2020},"mg/Nm3","Monthly 1/2 hourly mean","Monthly 1/2 hourly maximum","Monthly daily mean","Monthly daily maximum"]
[null,null,null,null,null,null,null,null,null,"A5","Jan"]
[null,null,null,null,null,null,null,null,null,null,"Feb"]
[null,null,null,null,null,null,null,null,null,null,"Mar"]
[null,null,null,null,null,null,null,null,null,null,"Apr"]
[null,null,null,null,null,null,null,null,null,null,"May"]
[null,null,null,null,null,null,null,null,null,null,"Jun"]
[null,null,null,null,null,null,null,null,null,null,"Jul"]
[null,null,null,null,null,null,null,null,null,null,"Aug"]
[null,null,null,null,null,null,null,null,null,null,"Sep"]
[null,null,null,null,null,null,null,null,null,null,"Oct"]
[null,null,null,null,null,null,null,null,null,null,"Nov"]
[null,null,null,null,null,null,null,null,null,null,"Dec"]
[null,null,null,null,null,null,null,null,null,null,"Annual",{"$f":"AVERAGE(L67:L78)","v":{"$error":"#DIV/0!"}},{"$f":"MAX(M67:M78)","v":0},{"$f":"AVERAGE(N67:N78)","v":{"$error":"#DIV/0!"}},{"$f":"MAX(O67:O78)","v":0}]

{"sheet":"SO2","index":15,"n_rows":79,"n_cols":17,"rows_kept":79,"cut":false,"hidden":false,"merged":[[3,16,7,18],[9,16,11,18],[12,16,15,18],[66,9,78,9],[4,1,4,3],[4,4,4,6],[4,9,4,14],[6,9,18,9],[21,9,33,9],[36,9,48,9],[47,0,47,6],[48,0,51,6],[51,9,63,9]]}
[{"$f":"+'Cover Page'!$B$29","v":"Annual Performance Report 2020"},null,null,null,{"$f":"+'Cover Page'!$B$33","v":"Wolverhampton Energy from Waste Facility"}]
[]
["Monitoring of Sulphur dioxide emissions",null,null,"Whole Installation",null,null,"See  Notes in Cell Q3",null,null,{"$f":"+A3","v":"Monitoring of Sulphur dioxide emissions"},null,null,null,"Per Combustion Line",null,null,"Notes:"]
[null,null,null,null,null,null,null,null,null,null,null,null,null,null,null,null,"User to add logic to complete Whole installation, Table A5:G18. From the data in Per Combustion Line, Table J6:O79, subject to No. of lines installed"]
["mg/Nm3","1/2 Hourly Reference Periods",null,null,"Daily Reference Periods"]
[{"$f":"+'Cover Page'!C39","v":2020},"1/2 hourly SO2 ELV","Monthly 1/2 hourly mean","Highest 1/2 hourly maximum","Daily SO2 ELV","Monthly daily mean","Highest daily maximum",null,null,{"$f":"+A6","v":2020},"mg/Nm3","Monthly 1/2 hourly mean","Monthly 1/2 hourly maximum","Monthly daily mean","Monthly daily maximum"]
["Jan",200,{"$f":"AVERAGE(L7,L22)","v":17},{"$f":"MAX(M7,M22)","v":94},50,{"$f":"AVERAGE(N7,N22)","v":17},{"$f":"MAX(O7,O22)","v":23},null,null,"A1","Jan",17,94,17,23]
["Feb",200,{"$f":"AVERAGE(L8,L23)","v":21},{"$f":"MAX(M8,M23)","v":78},50,{"$f":"AVERAGE(N8,N23)","v":21},{"$f":"MAX(O8,O23)","v":27},null,null,null,"Feb",21,77,21,27]
["Mar",200,24,85,50,24,30,null,null,null,"Mar",27,85,27,30,null,"Whole Installation table A5:G18:"]
["Apr",200,26.5,129,50,26.5,36,null,null,null,"Apr",28,91,28,36,null,"Mean: for 1/2 hourly and daily periods calculate mean of values across all operational combustion lines for the month"]
["May",200,26.5,98,50,26.5,35,null,null,null,"May",29,98,29,35]
["Jun",200,24.5,102,50,24.5,32,null,null,null,"Jun",26,102,26,32]
["Jul",200,22.5,156,50,22.5,31,null,null,null,"Jul",24,68,24,31,null,"Maximum: for 1/2 hourly and daily periods use the highest value across all operational combustion lines for the month"]
["Aug",200,24,99,50,24,36,null,null,null,"Aug",25,99,25,36]
["Sep",200,29,74,50,29,34,null,null,null,"Sep",29,74,29,34]
["Oct",200,28,184,50,28,39,null,null,null,"Oct",30,93,30,39]
["Nov",200,21.5,108,50,21.5,30,null,null,null,"Nov",20,73,20,30]
["Dec",200,22,110,50,22,28,null,null,null,"Dec",22,65,22,28]
[null,null,null,null,null,null,null,null,null,null,"Annual",{"$f":"AVERAGE(L7:L18)","v":24.833333333333332},{"$f":"MAX(M7:M18)","v":102},{"$f":"AVERAGE(N7:N18)","v":24.833333333333332},{"$f":"MAX(O7:O18)","v":39}]
[]
[null,null,null,null,null,null,null,null,null,{"$f":"+A6","v":2020},"mg/Nm3","Monthly 1/2 hourly mean","Monthly 1/2 hourly maximum","Monthly daily mean","Monthly daily maximum"]
[null,null,null,null,null,null,null,null,null,"A2","Jan",17,46,17,22]
[null,null,null,null,null,null,null,null,null,null,"Feb",21,78,21,27]
[null,null,null,null,null,null,null,null,null,null,"Mar",21,57,21,27]
[null,null,null,null,null,null,null,null,null,null,"Apr",25,129,25,32]
[null,null,null,null,null,null,null,null,null,null,"May",24,89,24,33]
[null,null,null,null,null,null,null,null,null,null,"Jun",23,61,23,30]
[null,null,null,null,null,null,null,null,null,null,"Jul",21,156,21,30]
[null,null,null,null,null,null,null,null,null,null,"Aug",23,80,23,31]
[null,null,null,null,null,null,null,null,null,null,"Sep",29,67,29,33]
[null,null,null,null,null,null,null,null,null,null,"Oct",26,184,26,33]
[null,null,null,null,null,null,null,null,null,null,"Nov",23,108,23,30]
[null,null,null,null,null,null,null,null,null,null,"Dec",22,110,22,28]
[null,null,null,null,null,null,null,null,null,null,"Annual",{"$f":"AVERAGE(L22:L33)","v":22.916666666666668},{"$f":"MAX(M22:M33)","v":184},{"$f":"AVERAGE(N22:N33)","v":22.916666666666668},{"$f":"MAX(O22:O33)","v":33}]
[]
[null,null,null,null,null,null,null,null,null,{"$f":"+A6","v":2020},"mg/Nm3","Monthly 1/2 hourly mean","Monthly 1/2 hourly maximum","Monthly daily mean","Monthly daily maximum"]
[null,null,null,null,null,null,null,null,null,"A3","Jan"]
[null,null,null,null,null,null,null,null,null,null,"Feb"]
[null,null,null,null,null,null,null,null,null,null,"Mar"]
[null,null,null,null,null,null,null,null,null,null,"Apr"]
[null,null,null,null,null,null,null,null,null,null,"May"]
[null,null,null,null,null,null,null,null,null,null,"Jun"]
[null,null,null,null,null,null,null,null,null,null,"Jul"]
[null,null,null,null,null,null,null,null,null,null,"Aug"]
[null,null,null,null,null,null,null,null,null,null,"Sep"]
[null,null,null,null,null,null,null,null,null,null,"Oct"]
[null,null,null,null,null,null,null,null,null,null,"Nov"]
["Comments :",null,null,null,null,null,null,null,null,null,"Dec"]
[null,null,null,null,null,null,null,null,null,null,"Annual",{"$f":"AVERAGE(L37:L48)","v":{"$error":"#DIV/0!"}},{"$f":"MAX(M37:M48)","v":0},{"$f":"AVERAGE(N37:N48)","v":{"$error":"#DIV/0!"}},{"$f":"MAX(O37:O48)","v":0}]
[]
[null,null,null,null,null,null,null,null,null,{"$f":"+A6","v":2020},"mg/Nm3","Monthly 1/2 hourly mean","Monthly 1/2 hourly maximum","Monthly daily mean","Monthly daily maximum"]
[null,null,null,null,null,null,null,null,null,"A4","Jan"]
[null,null,null,null,null,null,null,null,null,null,"Feb"]
[null,null,null,null,null,null,null,null,null,null,"Mar"]
[null,null,null,null,null,null,null,null,null,null,"Apr"]
[null,null,null,null,null,null,null,null,null,null,"May"]
[null,null,null,null,null,null,null,null,null,null,"Jun"]
[null,null,null,null,null,null,null,null,null,null,"Jul"]
[null,null,null,null,null,null,null,null,null,null,"Aug"]
[null,null,null,null,null,null,null,null,null,null,"Sep"]
[null,null,null,null,null,null,null,null,null,null,"Oct"]
[null,null,null,null,null,null,null,null,null,null,"Nov"]
[null,null,null,null,null,null,null,null,null,null,"Dec"]
[null,null,null,null,null,null,null,null,null,null,"Annual",{"$f":"AVERAGE(L52:L63)","v":{"$error":"#DIV/0!"}},{"$f":"MAX(M52:M63)","v":0},{"$f":"AVERAGE(N52:N63)","v":{"$error":"#DIV/0!"}},{"$f":"MAX(O52:O63)","v":0}]
[]
[null,null,null,null,null,null,null,null,null,{"$f":"+A6","v":2020},"mg/Nm3","Monthly 1/2 hourly mean","Monthly 1/2 hourly maximum","Monthly daily mean","Monthly daily maximum"]
[null,null,null,null,null,null,null,null,null,"A5","Jan"]
[null,null,null,null,null,null,null,null,null,null,"Feb"]
[null,null,null,null,null,null,null,null,null,null,"Mar"]
[null,null,null,null,null,null,null,null,null,null,"Apr"]
[null,null,null,null,null,null,null,null,null,null,"May"]
[null,null,null,null,null,null,null,null,null,null,"Jun"]
[null,null,null,null,null,null,null,null,null,null,"Jul"]
[null,null,null,null,null,null,null,null,null,null,"Aug"]
[null,null,null,null,null,null,null,null,null,null,"Sep"]
[null,null,null,null,null,null,null,null,null,null,"Oct"]
[null,null,null,null,null,null,null,null,null,null,"Nov"]
[null,null,null,null,null,null,null,null,null,null,"Dec"]
[null,null,null,null,null,null,null,null,null,null,"Annual",{"$f":"AVERAGE(L67:L78)","v":{"$error":"#DIV/0!"}},{"$f":"MAX(M67:M78)","v":0},{"$f":"AVERAGE(N67:N78)","v":{"$error":"#DIV/0!"}},{"$f":"MAX(O67:O78)","v":0}]

{"sheet":"NOx","index":16,"n_rows":79,"n_cols":17,"rows_kept":79,"cut":false,"hidden":false,"merged":[[3,16,7,18],[9,16,11,18],[12,16,15,18],[66,9,78,9],[4,1,4,3],[4,4,4,6],[4,9,4,14],[6,9,18,9],[21,9,33,9],[36,9,48,9],[47,0,47,6],[48,0,51,6],[51,9,63,9]]}
[{"$f":"+'Cover Page'!$B$29","v":"Annual Performance Report 2020"},null,null,null,{"$f":"+'Cover Page'!$B$33","v":"Wolverhampton Energy from Waste Facility"}]
[]
["Monitoring of Oxides of Nitrogen emissions",null,null,"Whole Installation",null,null,"See  Notes in Cell Q3",null,null,{"$f":"+A3","v":"Monitoring of Oxides of Nitrogen emissions"},null,null,null,"Per Combustion Line",null,null,"Notes:"]
[null,null,null,null,null,null,null,null,null,null,null,null,null,null,null,null,"User to add logic to complete Whole installation, Table A5:G18. From the data in Per Combustion Line, Table J6:O79, subject to No. of lines installed"]
["mg/Nm3","1/2 Hourly Reference Periods",null,null,"Daily Reference Periods"]
[{"$f":"+'Cover Page'!C39","v":2020},"1/2 hourly NOx ELV","Monthly 1/2 hourly mean","Highest 1/2 hourly maximum","Daily NOx ELV","Monthly daily mean","Highest daily maximum",null,null,{"$f":"+A6","v":2020},"mg/Nm3","Monthly 1/2 hourly mean","Monthly 1/2 hourly maximum","Monthly daily mean","Monthly daily maximum"]
["Jan",400,{"$f":"AVERAGE(L7,L22)","v":171},{"$f":"MAX(M7,M22)","v":321},200,{"$f":"AVERAGE(N7,N22)","v":171},{"$f":"MAX(O7,O22)","v":182},null,null,"A1","Jan",171,321,171,176]
["Feb",400,{"$f":"AVERAGE(L8,L23)","v":185.5},{"$f":"MAX(M8,M23)","v":269},200,{"$f":"AVERAGE(N8,N23)","v":185.5},{"$f":"MAX(O8,O23)","v":197},null,null,null,"Feb",186,240,186,191]
["Mar",400,186,313,200,186,210,null,null,null,"Mar",186,313,186,210,null,"Whole Installation table A5:G18:"]
["Apr",400,183,289,200,183,189,null,null,null,"Apr",181,285,181,187,null,"Mean: for 1/2 hourly and daily periods calculate mean of values across all operational combustion lines for the month"]
["May",400,184,250,200,184,191,null,null,null,"May",182,241,182,186]
["Jun",400,183,254,200,183,190,null,null,null,"Jun",184,243,184,188]
["Jul",400,185.5,296,200,185.5,194,null,null,null,"Jul",185,294,185,194,null,"Maximum: for 1/2 hourly and daily periods use the highest value across all operational combustion lines for the month"]
["Aug",400,185.5,372,200,185.5,198,null,null,null,"Aug",185,372,185,198]
["Sep",400,186,364,200,186,187,null,null,null,"Sep",186,364,186,187]
["Oct",400,187,380,200,187,198,null,null,null,"Oct",186,334,186,195]
["Nov",400,186,307,200,186,193,null,null,null,"Nov",186,307,186,193]
["Dec",400,186,396,200,186,188,null,null,null,"Dec",186,309,186,188]
[null,null,null,null,null,null,null,null,null,null,"Annual",{"$f":"AVERAGE(L7:L18)","v":183.66666666666666},{"$f":"MAX(M7:M18)","v":372},{"$f":"AVERAGE(N7:N18)","v":183.66666666666666},{"$f":"MAX(O7:O18)","v":210}]
[]
[null,null,null,null,null,null,null,null,null,{"$f":"+A6","v":2020},"mg/Nm3","Monthly 1/2 hourly mean","Monthly 1/2 hourly maximum","Monthly daily mean","Monthly daily maximum"]
[null,null,null,null,null,null,null,null,null,"A2","Jan",171,292,171,182]
[null,null,null,null,null,null,null,null,null,null,"Feb",185,269,185,197]
[null,null,null,null,null,null,null,null,null,null,"Mar",186,247,186,187]
[null,null,null,null,null,null,null,null,null,null,"Apr",185,289,185,189]
[null,null,null,null,null,null,null,null,null,null,"May",186,250,186,191]
[null,null,null,null,null,null,null,null,null,null,"Jun",182,254,182,190]
[null,null,null,null,null,null,null,null,null,null,"Jul",186,296,186,189]
[null,null,null,null,null,null,null,null,null,null,"Aug",186,295,186,190]
[null,null,null,null,null,null,null,null,null,null,"Sep",186,295,186,187]
[null,null,null,null,null,null,null,null,null,null,"Oct",188,380,188,198]
[null,null,null,null,null,null,null,null,null,null,"Nov",186,273,186,188]
[null,null,null,null,null,null,null,null,null,null,"Dec",186,396,186,188]
[null,null,null,null,null,null,null,null,null,null,"Annual",{"$f":"AVERAGE(L22:L33)","v":184.41666666666666},{"$f":"MAX(M22:M33)","v":396},{"$f":"AVERAGE(N22:N33)","v":184.41666666666666},{"$f":"MAX(O22:O33)","v":198}]
[]
[null,null,null,null,null,null,null,null,null,{"$f":"+A6","v":2020},"mg/Nm3","Monthly 1/2 hourly mean","Monthly 1/2 hourly maximum","Monthly daily mean","Monthly daily maximum"]
[null,null,null,null,null,null,null,null,null,"A3","Jan"]
[null,null,null,null,null,null,null,null,null,null,"Feb"]
[null,null,null,null,null,null,null,null,null,null,"Mar"]
[null,null,null,null,null,null,null,null,null,null,"Apr"]
[null,null,null,null,null,null,null,null,null,null,"May"]
[null,null,null,null,null,null,null,null,null,null,"Jun"]
[null,null,null,null,null,null,null,null,null,null,"Jul"]
[null,null,null,null,null,null,null,null,null,null,"Aug"]
[null,null,null,null,null,null,null,null,null,null,"Sep"]
[null,null,null,null,null,null,null,null,null,null,"Oct"]
[null,null,null,null,null,null,null,null,null,null,"Nov"]
["Comments :",null,null,null,null,null,null,null,null,null,"Dec"]
[null,null,null,null,null,null,null,null,null,null,"Annual",{"$f":"AVERAGE(L37:L48)","v":{"$error":"#DIV/0!"}},{"$f":"MAX(M37:M48)","v":0},{"$f":"AVERAGE(N37:N48)","v":{"$error":"#DIV/0!"}},{"$f":"MAX(O37:O48)","v":0}]
[]
[null,null,null,null,null,null,null,null,null,{"$f":"+A6","v":2020},"mg/Nm3","Monthly 1/2 hourly mean","Monthly 1/2 hourly maximum","Monthly daily mean","Monthly daily maximum"]
[null,null,null,null,null,null,null,null,null,"A4","Jan"]
[null,null,null,null,null,null,null,null,null,null,"Feb"]
[null,null,null,null,null,null,null,null,null,null,"Mar"]
[null,null,null,null,null,null,null,null,null,null,"Apr"]
[null,null,null,null,null,null,null,null,null,null,"May"]
[null,null,null,null,null,null,null,null,null,null,"Jun"]
[null,null,null,null,null,null,null,null,null,null,"Jul"]
[null,null,null,null,null,null,null,null,null,null,"Aug"]
[null,null,null,null,null,null,null,null,null,null,"Sep"]
[null,null,null,null,null,null,null,null,null,null,"Oct"]
[null,null,null,null,null,null,null,null,null,null,"Nov"]
[null,null,null,null,null,null,null,null,null,null,"Dec"]
[null,null,null,null,null,null,null,null,null,null,"Annual",{"$f":"AVERAGE(L52:L63)","v":{"$error":"#DIV/0!"}},{"$f":"MAX(M52:M63)","v":0},{"$f":"AVERAGE(N52:N63)","v":{"$error":"#DIV/0!"}},{"$f":"MAX(O52:O63)","v":0}]
[]
[null,null,null,null,null,null,null,null,null,{"$f":"+A6","v":2020},"mg/Nm3","Monthly 1/2 hourly mean","Monthly 1/2 hourly maximum","Monthly daily mean","Monthly daily maximum"]
[null,null,null,null,null,null,null,null,null,"A5","Jan"]
[null,null,null,null,null,null,null,null,null,null,"Feb"]
[null,null,null,null,null,null,null,null,null,null,"Mar"]
[null,null,null,null,null,null,null,null,null,null,"Apr"]
[null,null,null,null,null,null,null,null,null,null,"May"]
[null,null,null,null,null,null,null,null,null,null,"Jun"]
[null,null,null,null,null,null,null,null,null,null,"Jul"]
[null,null,null,null,null,null,null,null,null,null,"Aug"]
[null,null,null,null,null,null,null,null,null,null,"Sep"]
[null,null,null,null,null,null,null,null,null,null,"Oct"]
[null,null,null,null,null,null,null,null,null,null,"Nov"]
[null,null,null,null,null,null,null,null,null,null,"Dec"]
[null,null,null,null,null,null,null,null,null,null,"Annual",{"$f":"AVERAGE(L67:L78)","v":{"$error":"#DIV/0!"}},{"$f":"MAX(M67:M78)","v":0},{"$f":"AVERAGE(N67:N78)","v":{"$error":"#DIV/0!"}},{"$f":"MAX(O67:O78)","v":0}]

{"sheet":"TOC","index":17,"n_rows":79,"n_cols":17,"rows_kept":79,"cut":false,"hidden":false,"merged":[[3,16,7,18],[9,16,11,18],[12,16,15,18],[66,9,78,9],[4,1,4,3],[4,4,4,6],[4,9,4,14],[6,9,18,9],[21,9,33,9],[36,9,48,9],[47,0,47,6],[48,0,51,6],[51,9,63,9]]}
[{"$f":"+'Cover Page'!$B$29","v":"Annual Performance Report 2020"},null,null,null,{"$f":"+'Cover Page'!$B$33","v":"Wolverhampton Energy from Waste Facility"}]
[]
["Monitoring of Total organic carbon emissions",null,null,"Whole Installation",null,null,"See  Notes in Cell Q3",null,null,{"$f":"+A3","v":"Monitoring of Total organic carbon emissions"},null,null,null,"Per Combustion Line",null,null,"Notes:"]
[null,null,null,null,null,null,null,null,null,null,null,null,null,null,null,null,"User to add logic to complete Whole installation, Table A5:G18. From the data in Per Combustion Line, Table J6:O79, subject to No. of lines installed"]
["mg/Nm3","1/2 Hourly Reference Periods",null,null,"Daily Reference Periods"]
[{"$f":"+'Cover Page'!C39","v":2020},"1/2 hourly TOC ELV","Monthly 1/2 hourly mean","Highest 1/2 hourly maximum","Daily TOC ELV","Monthly daily mean","Highest daily maximum",null,null,{"$f":"+A6","v":2020},"mg/Nm3","Monthly 1/2 hourly mean","Monthly 1/2 hourly maximum","Monthly daily mean","Monthly daily maximum"]
["Jan",20,{"$f":"AVERAGE(L7,L22)","v":0},{"$f":"MAX(M7,M22)","v":8},10,{"$f":"AVERAGE(N7,N22)","v":0},{"$f":"MAX(O7,O22)","v":0},null,null,"A1","Jan",0,8,0,0]
["Feb",20,{"$f":"AVERAGE(L8,L23)","v":0},{"$f":"MAX(M8,M23)","v":8},10,{"$f":"AVERAGE(N8,N23)","v":0},{"$f":"MAX(O8,O23)","v":2},null,null,null,"Feb",0,8,0,2]
["Mar",20,0.5,25,10,0.5,2,null,null,null,"Mar",1,25,1,2,null,"Whole Installation table A5:G18:"]
["Apr",20,0.5,13,10,0.5,1,null,null,null,"Apr",1,13,1,1,null,"Mean: for 1/2 hourly and daily periods calculate mean of values across all operational combustion lines for the month"]
["May",20,0.5,24,10,0.5,2,null,null,null,"May",1,24,1,2]
["Jun",20,1,21,10,1,5,null,null,null,"Jun",1,21,1,3]
["Jul",20,1.5,13,10,1.5,4,null,null,null,"Jul",1,13,1,3,null,"Maximum: for 1/2 hourly and daily periods use the highest value across all operational combustion lines for the month"]
["Aug",20,1,23,10,1,4,null,null,null,"Aug",1,21,1,4]
["Sep",20,0.5,11,10,0.5,2,null,null,null,"Sep",1,11,1,2]
["Oct",20,0,7,10,0,0,null,null,null,"Oct",0,6,0,0]
["Nov",20,0,5,10,0,1,null,null,null,"Nov",0,4,0,1]
["Dec",20,0,8,10,0,0,null,null,null,"Dec",0,4,0,0]
[null,null,null,null,null,null,null,null,null,null,"Annual",{"$f":"AVERAGE(L7:L18)","v":0.58333333333333337},{"$f":"MAX(M7:M18)","v":25},{"$f":"AVERAGE(N7:N18)","v":0.58333333333333337},{"$f":"MAX(O7:O18)","v":4}]
[]
[null,null,null,null,null,null,null,null,null,{"$f":"+A6","v":2020},"mg/Nm3","Monthly 1/2 hourly mean","Monthly 1/2 hourly maximum","Monthly daily mean","Monthly daily maximum"]
[null,null,null,null,null,null,null,null,null,"A2","Jan",0,4,0,0]
[null,null,null,null,null,null,null,null,null,null,"Feb",0,4,0,0]
[null,null,null,null,null,null,null,null,null,null,"Mar",0,4,0,1]
[null,null,null,null,null,null,null,null,null,null,"Apr",0,10,0,1]
[null,null,null,null,null,null,null,null,null,null,"May",0,10,0,1]
[null,null,null,null,null,null,null,null,null,null,"Jun",1,12,1,5]
[null,null,null,null,null,null,null,null,null,null,"Jul",2,10,2,4]
[null,null,null,null,null,null,null,null,null,null,"Aug",1,23,1,4]
[null,null,null,null,null,null,null,null,null,null,"Sep",0,5,0,0]
[null,null,null,null,null,null,null,null,null,null,"Oct",0,7,0,0]
[null,null,null,null,null,null,null,null,null,null,"Nov",0,5,0,0]
[null,null,null,null,null,null,null,null,null,null,"Dec",0,8,0,0]
[null,null,null,null,null,null,null,null,null,null,"Annual",{"$f":"AVERAGE(L22:L33)","v":0.33333333333333331},{"$f":"MAX(M22:M33)","v":23},{"$f":"AVERAGE(N22:N33)","v":0.33333333333333331},{"$f":"MAX(O22:O33)","v":5}]
[]
[null,null,null,null,null,null,null,null,null,{"$f":"+A6","v":2020},"mg/Nm3","Monthly 1/2 hourly mean","Monthly 1/2 hourly maximum","Monthly daily mean","Monthly daily maximum"]
[null,null,null,null,null,null,null,null,null,"A3","Jan"]
[null,null,null,null,null,null,null,null,null,null,"Feb"]
[null,null,null,null,null,null,null,null,null,null,"Mar"]
[null,null,null,null,null,null,null,null,null,null,"Apr"]
[null,null,null,null,null,null,null,null,null,null,"May"]
[null,null,null,null,null,null,null,null,null,null,"Jun"]
[null,null,null,null,null,null,null,null,null,null,"Jul"]
[null,null,null,null,null,null,null,null,null,null,"Aug"]
[null,null,null,null,null,null,null,null,null,null,"Sep"]
[null,null,null,null,null,null,null,null,null,null,"Oct"]
[null,null,null,null,null,null,null,null,null,null,"Nov"]
["Comments :",null,null,null,null,null,null,null,null,null,"Dec"]
[null,null,null,null,null,null,null,null,null,null,"Annual",{"$f":"AVERAGE(L37:L48)","v":{"$error":"#DIV/0!"}},{"$f":"MAX(M37:M48)","v":0},{"$f":"AVERAGE(N37:N48)","v":{"$error":"#DIV/0!"}},{"$f":"MAX(O37:O48)","v":0}]
[]
[null,null,null,null,null,null,null,null,null,{"$f":"+A6","v":2020},"mg/Nm3","Monthly 1/2 hourly mean","Monthly 1/2 hourly maximum","Monthly daily mean","Monthly daily maximum"]
[null,null,null,null,null,null,null,null,null,"A4","Jan"]
[null,null,null,null,null,null,null,null,null,null,"Feb"]
[null,null,null,null,null,null,null,null,null,null,"Mar"]
[null,null,null,null,null,null,null,null,null,null,"Apr"]
[null,null,null,null,null,null,null,null,null,null,"May"]
[null,null,null,null,null,null,null,null,null,null,"Jun"]
[null,null,null,null,null,null,null,null,null,null,"Jul"]
[null,null,null,null,null,null,null,null,null,null,"Aug"]
[null,null,null,null,null,null,null,null,null,null,"Sep"]
[null,null,null,null,null,null,null,null,null,null,"Oct"]
[null,null,null,null,null,null,null,null,null,null,"Nov"]
[null,null,null,null,null,null,null,null,null,null,"Dec"]
[null,null,null,null,null,null,null,null,null,null,"Annual",{"$f":"AVERAGE(L52:L63)","v":{"$error":"#DIV/0!"}},{"$f":"MAX(M52:M63)","v":0},{"$f":"AVERAGE(N52:N63)","v":{"$error":"#DIV/0!"}},{"$f":"MAX(O52:O63)","v":0}]
[]
[null,null,null,null,null,null,null,null,null,{"$f":"+A6","v":2020},"mg/Nm3","Monthly 1/2 hourly mean","Monthly 1/2 hourly maximum","Monthly daily mean","Monthly daily maximum"]
[null,null,null,null,null,null,null,null,null,"A5","Jan"]
[null,null,null,null,null,null,null,null,null,null,"Feb"]
[null,null,null,null,null,null,null,null,null,null,"Mar"]
[null,null,null,null,null,null,null,null,null,null,"Apr"]
[null,null,null,null,null,null,null,null,null,null,"May"]
[null,null,null,null,null,null,null,null,null,null,"Jun"]
[null,null,null,null,null,null,null,null,null,null,"Jul"]
[null,null,null,null,null,null,null,null,null,null,"Aug"]
[null,null,null,null,null,null,null,null,null,null,"Sep"]
[null,null,null,null,null,null,null,null,null,null,"Oct"]
[null,null,null,null,null,null,null,null,null,null,"Nov"]
[null,null,null,null,null,null,null,null,null,null,"Dec"]
[null,null,null,null,null,null,null,null,null,null,"Annual",{"$f":"AVERAGE(L67:L78)","v":{"$error":"#DIV/0!"}},{"$f":"MAX(M67:M78)","v":0},{"$f":"AVERAGE(N67:N78)","v":{"$error":"#DIV/0!"}},{"$f":"MAX(O67:O78)","v":0}]

{"sheet":"Particulates","index":18,"n_rows":79,"n_cols":17,"rows_kept":79,"cut":false,"hidden":false,"merged":[[3,16,7,18],[9,16,11,18],[12,16,15,18],[66,9,78,9],[4,1,4,3],[4,4,4,6],[4,9,4,14],[6,9,18,9],[21,9,33,9],[36,9,48,9],[47,0,47,6],[48,0,51,6],[51,9,63,9]]}
[{"$f":"+'Cover Page'!$B$29","v":"Annual Performance Report 2020"},null,null,null,{"$f":"+'Cover Page'!$B$33","v":"Wolverhampton Energy from Waste Facility"}]
[]
["Monitoring of Particulate matter emissions",null,null,"Whole Installation",null,null,"See  Notes in Cell Q3",null,null,{"$f":"+A3","v":"Monitoring of Particulate matter emissions"},null,null,null,"Per Combustion Line",null,null,"Notes:"]
[null,null,null,null,null,null,null,null,null,null,null,null,null,null,null,null,"User to add logic to complete Whole installation, Table A5:G18. From the data in Per Combustion Line, Table J6:O79, subject to No. of lines installed"]
["mg/Nm3","1/2 Hourly Reference Periods",null,null,"Daily Reference Periods"]
[{"$f":"+'Cover Page'!C39","v":2020},"1/2 hourly PM ELV","Monthly 1/2 hourly mean","Highest 1/2 hourly maximum","Daily PM ELV","Monthly daily mean","Highest daily maximum",null,null,{"$f":"+A6","v":2020},"mg/Nm3","Monthly 1/2 hourly mean","Monthly 1/2 hourly maximum","Monthly daily mean","Monthly daily maximum"]
["Jan",30,{"$f":"AVERAGE(L7,L22)","v":0.14499999999999999},{"$f":"MAX(M7,M22)","v":21},10,{"$f":"AVERAGE(N7,N22)","v":0.14499999999999999},{"$f":"MAX(O7,O22)","v":2},null,null,"A1","Jan",0.24,21,0.24,2]
["Feb",30,{"$f":"AVERAGE(L8,L23)","v":7.4999999999999997E-2},{"$f":"MAX(M8,M23)","v":1},10,{"$f":"AVERAGE(N8,N23)","v":7.4999999999999997E-2},{"$f":"MAX(O8,O23)","v":0},null,null,null,"Feb",0.12,1,0.12,0]
["Mar",30,0.14000000000000001,2,10,0.14000000000000001,1,null,null,null,"Mar",0.18,2,0.18,1,null,"Whole Installation table A5:G18:"]
["Apr",30,1.24,19,10,1.24,7,null,null,null,"Apr",2.29,19,2.29,7,null,"Mean: for 1/2 hourly and daily periods calculate mean of values across all operational combustion lines for the month"]
["May",30,1.7049999999999998,11,10,1.7049999999999998,7,null,null,null,"May",3.3,11,3.3,7]
["Jun",30,0.245,4,10,0.245,1,null,null,null,"Jun",0.4,4,0.4,1]
["Jul",30,0.12,2,10,0.12,0,null,null,null,"Jul",0.12,2,0.12,0,null,"Maximum: for 1/2 hourly and daily periods use the highest value across all operational combustion lines for the month"]
["Aug",30,0.12,8,10,0.12,1,null,null,null,"Aug",0.13,8,0.13,1]
["Sep",30,0.22,3,10,0.22,0,null,null,null,"Sep",0.32,3,0.32,0]
["Oct",30,9.5000000000000001E-2,1,10,9.5000000000000001E-2,0,null,null,null,"Oct",0.13,1,0.13,0]
["Nov",30,0.08,1,10,0.08,0,null,null,null,"Nov",0.12,1,0.12,0]
["Dec",30,8.5000000000000006E-2,1,10,8.5000000000000006E-2,0,null,null,null,"Dec",0.13,1,0.13,0]
[null,null,null,null,null,null,null,null,null,null,"Annual",{"$f":"AVERAGE(L7:L18)","v":0.62333333333333341},{"$f":"MAX(M7:M18)","v":21},{"$f":"AVERAGE(N7:N18)","v":0.62333333333333341},{"$f":"MAX(O7:O18)","v":7}]
[]
[null,null,null,null,null,null,null,null,null,{"$f":"+A6","v":2020},"mg/Nm3","Monthly 1/2 hourly mean","Monthly 1/2 hourly maximum","Monthly daily mean","Monthly daily maximum"]
[null,null,null,null,null,null,null,null,null,"A2","Jan",0.05,1,0.05,0]
[null,null,null,null,null,null,null,null,null,null,"Feb",0.03,1,0.03,0]
[null,null,null,null,null,null,null,null,null,null,"Mar",0.1,1,0.1,0]
[null,null,null,null,null,null,null,null,null,null,"Apr",0.19,4,0.19,2]
[null,null,null,null,null,null,null,null,null,null,"May",0.11,2,0.11,0]
[null,null,null,null,null,null,null,null,null,null,"Jun",0.09,0,0.09,0]
[null,null,null,null,null,null,null,null,null,null,"Jul",0.12,0,0.12,0]
[null,null,null,null,null,null,null,null,null,null,"Aug",0.11,1,0.11,0]
[null,null,null,null,null,null,null,null,null,null,"Sep",0.12,1,0.12,0]
[null,null,null,null,null,null,null,null,null,null,"Oct",0.06,1,0.06,0]
[null,null,null,null,null,null,null,null,null,null,"Nov",0.04,0,0.04,0]
[null,null,null,null,null,null,null,null,null,null,"Dec",0.04,0,0.04,0]
[null,null,null,null,null,null,null,null,null,null,"Annual",{"$f":"AVERAGE(L22:L33)","v":8.8333333333333333E-2},{"$f":"MAX(M22:M33)","v":4},{"$f":"AVERAGE(N22:N33)","v":8.8333333333333333E-2},{"$f":"MAX(O22:O33)","v":2}]
[]
[null,null,null,null,null,null,null,null,null,{"$f":"+A6","v":2020},"mg/Nm3","Monthly 1/2 hourly mean","Monthly 1/2 hourly maximum","Monthly daily mean","Monthly daily maximum"]
[null,null,null,null,null,null,null,null,null,"A3","Jan"]
[null,null,null,null,null,null,null,null,null,null,"Feb"]
[null,null,null,null,null,null,null,null,null,null,"Mar"]
[null,null,null,null,null,null,null,null,null,null,"Apr"]
[null,null,null,null,null,null,null,null,null,null,"May"]
[null,null,null,null,null,null,null,null,null,null,"Jun"]
[null,null,null,null,null,null,null,null,null,null,"Jul"]
[null,null,null,null,null,null,null,null,null,null,"Aug"]
[null,null,null,null,null,null,null,null,null,null,"Sep"]
[null,null,null,null,null,null,null,null,null,null,"Oct"]
[null,null,null,null,null,null,null,null,null,null,"Nov"]
["Comments :",null,null,null,null,null,null,null,null,null,"Dec"]
[null,null,null,null,null,null,null,null,null,null,"Annual",{"$f":"AVERAGE(L37:L48)","v":{"$error":"#DIV/0!"}},{"$f":"MAX(M37:M48)","v":0},{"$f":"AVERAGE(N37:N48)","v":{"$error":"#DIV/0!"}},{"$f":"MAX(O37:O48)","v":0}]
[]
[null,null,null,null,null,null,null,null,null,{"$f":"+A6","v":2020},"mg/Nm3","Monthly 1/2 hourly mean","Monthly 1/2 hourly maximum","Monthly daily mean","Monthly daily maximum"]
[null,null,null,null,null,null,null,null,null,"A4","Jan"]
[null,null,null,null,null,null,null,null,null,null,"Feb"]
[null,null,null,null,null,null,null,null,null,null,"Mar"]
[null,null,null,null,null,null,null,null,null,null,"Apr"]
[null,null,null,null,null,null,null,null,null,null,"May"]
[null,null,null,null,null,null,null,null,null,null,"Jun"]
[null,null,null,null,null,null,null,null,null,null,"Jul"]
[null,null,null,null,null,null,null,null,null,null,"Aug"]
[null,null,null,null,null,null,null,null,null,null,"Sep"]
[null,null,null,null,null,null,null,null,null,null,"Oct"]
[null,null,null,null,null,null,null,null,null,null,"Nov"]
[null,null,null,null,null,null,null,null,null,null,"Dec"]
[null,null,null,null,null,null,null,null,null,null,"Annual",{"$f":"AVERAGE(L52:L63)","v":{"$error":"#DIV/0!"}},{"$f":"MAX(M52:M63)","v":0},{"$f":"AVERAGE(N52:N63)","v":{"$error":"#DIV/0!"}},{"$f":"MAX(O52:O63)","v":0}]
[]
[null,null,null,null,null,null,null,null,null,{"$f":"+A6","v":2020},"mg/Nm3","Monthly 1/2 hourly mean","Monthly 1/2 hourly maximum","Monthly daily mean","Monthly daily maximum"]
[null,null,null,null,null,null,null,null,null,"A5","Jan"]
[null,null,null,null,null,null,null,null,null,null,"Feb"]
[null,null,null,null,null,null,null,null,null,null,"Mar"]
[null,null,null,null,null,null,null,null,null,null,"Apr"]
[null,null,null,null,null,null,null,null,null,null,"May"]
[null,null,null,null,null,null,null,null,null,null,"Jun"]
[null,null,null,null,null,null,null,null,null,null,"Jul"]
[null,null,null,null,null,null,null,null,null,null,"Aug"]
[null,null,null,null,null,null,null,null,null,null,"Sep"]
[null,null,null,null,null,null,null,null,null,null,"Oct"]
[null,null,null,null,null,null,null,null,null,null,"Nov"]
[null,null,null,null,null,null,null,null,null,null,"Dec"]
[null,null,null,null,null,null,null,null,null,null,"Annual",{"$f":"AVERAGE(L67:L78)","v":{"$error":"#DIV/0!"}},{"$f":"MAX(M67:M78)","v":0},{"$f":"AVERAGE(N67:N78)","v":{"$error":"#DIV/0!"}},{"$f":"MAX(O67:O78)","v":0}]

{"sheet":"CO 95% 10 min","index":19,"n_rows":79,"n_cols":19,"rows_kept":79,"cut":false,"hidden":false,"merged":[[3,18,7,20],[9,18,11,20],[12,18,15,20],[66,10,78,10],[4,1,4,4],[4,5,4,7],[4,10,4,16],[6,10,18,10],[21,10,33,10],[36,10,48,10],[47,0,47,7],[48,0,51,7],[51,10,63,10]]}
[{"$f":"+'Cover Page'!$B$29","v":"Annual Performance Report 2020"},null,null,null,{"$f":"+'Cover Page'!$B$33","v":"Wolverhampton Energy from Waste Facility"}]
[]
["Monitoring of Carbon Monoxide (10-minute avg)",null,null,null,"Whole Installation",null,null,"See  Notes in Cell S3",null,{"$f":"+A3","v":"Monitoring of Carbon Monoxide (10-minute avg)"},null,null,null,null,"Per Combustion Line",null,"Notes:",null,"Notes:"]
[null,null,null,null,null,null,null,null,null,null,null,null,null,null,null,null,null,null,"User to add logic to complete Whole installation, Table A5:H18. From the data in Per Combustion Line, Table K6:Q79, subject to No. of lines installed"]
["mg/Nm3","10-minute Reference Periods",null,null,null,"Daily Reference Periods"]
[{"$f":"+'Cover Page'!C39","v":2020},"95%ile 10-min avg CO ELV","95%ile 10-min avg maximum","Monthly CO 10-min avg mean","10-min avg maximum","Daily CO ELV","Monthly daily mean","Highest daily maximum",null,null,{"$f":"+A6","v":2020},"mg/Nm3","95%ile 10-min avg maximum","Monthly CO 10-min avg mean","10-min avg maximum","Monthly daily mean","Monthly daily maximum"]
["Jan",150,{"$f":"MAX(M7,M22)","v":17.3},{"$f":"AVERAGE(N7,N22)","v":9},{"$f":"MAX(O7,O22)","v":60},50,{"$f":"AVERAGE(P7,P22)","v":9},{"$f":"MAX(Q7,Q22)","v":20},null,null,"A1","Jan",12.67,8,22,8,17]
["Feb",{"$f":"+B7","v":150},{"$f":"MAX(M8,M23)","v":18.62},{"$f":"AVERAGE(N8,N23)","v":9},{"$f":"MAX(O8,O23)","v":45},{"$f":"+F7","v":50},{"$f":"AVERAGE(P8,P23)","v":9},{"$f":"MAX(Q8,Q23)","v":21},null,null,null,"Feb",12.54,9,39,9,21]
["Mar",{"$f":"+B8","v":150},22.25,9.5,39,{"$f":"+F8","v":50},9.5,20,null,null,null,"Mar",11.49,7,31,7,20,null,"Whole Installation table A5:H18:"]
["Apr",150,21.13,8,45,50,8,18,null,null,null,"Apr",9.14,4,36,4,9,null,"Mean: for 10-min and daily periods use average of all operational combustion lines."]
["May",150,30.22,11,48,50,11,26,null,null,null,"May",12.37,5,39,5,10]
["Jun",150,35.630000000000003,15,64,50,15,28,null,null,null,"Jun",24.23,11,64,11,28]
["Jul",150,37.549999999999997,15,71,50,15,35,null,null,null,"Jul",16.89,9,70,9,23,null,"Maximum: for 10-min and daily periods use the highest of all operational combustion lines in any month."]
["Aug",150,40.340000000000003,14.5,100,50,14.5,34,null,null,null,"Aug",17.91,8,100,8,23]
["Sep",150,49.49,16,196,50,16,27,null,null,null,"Sep",22.78,10,196,10,17]
["Oct",150,23.8,10,63,50,10,30,null,null,null,"Oct",13.98,8,54,8,30]
["Nov",150,17.77,9,128,50,9,16,null,null,null,"Nov",15.76,9,128,9,16]
["Dec",150,18.28,8.5,39,50,8.5,17,null,null,null,"Dec",12.76,8,25,8,17]
[null,null,null,null,null,null,null,null,null,null,null,"Annual",{"$f":"AVERAGE(M7:M18)","v":15.209999999999996},{"$f":"AVERAGE(N7:N18)","v":8},{"$f":"MAX(O7:O18)","v":196},{"$f":"AVERAGE(P7:P18)","v":8},{"$f":"MAX(Q7:Q18)","v":30}]
[]
[null,null,null,null,null,null,null,null,null,null,{"$f":"+A6","v":2020},"mg/Nm3","95%ile 10-min avg maximum","Monthly CO 10-min avg mean","10-min avg maximum","Monthly daily mean","Monthly daily maximum"]
[null,null,null,null,null,null,null,null,null,null,"A2","Jan",17.3,10,60,10,20]
[null,null,null,null,null,null,null,null,null,null,null,"Feb",18.62,9,45,9,18]
[null,null,null,null,null,null,null,null,null,null,null,"Mar",22.25,12,39,12,20]
[null,null,null,null,null,null,null,null,null,null,null,"Apr",21.13,12,45,12,18]
[null,null,null,null,null,null,null,null,null,null,null,"May",30.22,17,48,17,26]
[null,null,null,null,null,null,null,null,null,null,null,"Jun",35.630000000000003,19,54,19,28]
[null,null,null,null,null,null,null,null,null,null,null,"Jul",37.549999999999997,21,71,21,35]
[null,null,null,null,null,null,null,null,null,null,null,"Aug",40.340000000000003,21,93,21,34]
[null,null,null,null,null,null,null,null,null,null,null,"Sep",49.49,22,176,22,27]
[null,null,null,null,null,null,null,null,null,null,null,"Oct",23.8,12,63,12,21]
[null,null,null,null,null,null,null,null,null,null,null,"Nov",17.77,9,35,9,15]
[null,null,null,null,null,null,null,null,null,null,null,"Dec",18.28,9,39,9,17]
[null,null,null,null,null,null,null,null,null,null,null,"Annual",{"$f":"AVERAGE(M22:M33)","v":27.698333333333334},{"$f":"AVERAGE(N22:N33)","v":14.416666666666666},{"$f":"MAX(O22:O33)","v":176},{"$f":"AVERAGE(P22:P33)","v":14.416666666666666},{"$f":"MAX(Q22:Q33)","v":35}]
[]
[null,null,null,null,null,null,null,null,null,null,{"$f":"+A6","v":2020},"mg/Nm3","95%ile 10-min avg maximum","Monthly CO 10-min avg mean","10-min avg maximum","Monthly daily mean","Monthly daily maximum"]
[null,null,null,null,null,null,null,null,null,null,"A3","Jan"]
[null,null,null,null,null,null,null,null,null,null,null,"Feb"]
[null,null,null,null,null,null,null,null,null,null,null,"Mar"]
[null,null,null,null,null,null,null,null,null,null,null,"Apr"]
[null,null,null,null,null,null,null,null,null,null,null,"May"]
[null,null,null,null,null,null,null,null,null,null,null,"Jun"]
[null,null,null,null,null,null,null,null,null,null,null,"Jul"]
[null,null,null,null,null,null,null,null,null,null,null,"Aug"]
[null,null,null,null,null,null,null,null,null,null,null,"Sep"]
[null,null,null,null,null,null,null,null,null,null,null,"Oct"]
[null,null,null,null,null,null,null,null,null,null,null,"Nov"]
["Comments :",null,null,null,null,null,null,null,null,null,null,"Dec"]
["Environment Agency explanatory note: The 10-minute average ELV is based on the “95th percentile”. In this case this means that 95% of the 10 minute averages in the relevant 24-hour period (i.e. 137) must be below 150 mg/Nm3, and 5% (i.e. 7) are allowed to be any value above 150 mg/Nm3. Whilst we expect operators to minimise CO emissions at all times, it is perfectly acceptable for the value of the maximum 10-minute average to be above 150 mg/Nm3, provided the 95th percentile ELV has been met for that period. ",null,null,null,null,null,null,null,null,null,null,"Annual",{"$f":"AVERAGE(M37:M48)","v":{"$error":"#DIV/0!"}},null,{"$f":"MAX(O37:O48)","v":0},{"$f":"AVERAGE(P37:P48)","v":{"$error":"#DIV/0!"}},{"$f":"MAX(Q37:Q48)","v":0}]
[]
[null,null,null,null,null,null,null,null,null,null,{"$f":"+A6","v":2020},"mg/Nm3","95%ile 10-min avg maximum","Monthly CO 10-min avg mean","10-min avg maximum","Monthly daily mean","Monthly daily maximum"]
[null,null,null,null,null,null,null,null,null,null,"A4","Jan"]
[null,null,null,null,null,null,null,null,null,null,null,"Feb"]
[null,null,null,null,null,null,null,null,null,null,null,"Mar"]
[null,null,null,null,null,null,null,null,null,null,null,"Apr"]
[null,null,null,null,null,null,null,null,null,null,null,"May"]
[null,null,null,null,null,null,null,null,null,null,null,"Jun"]
[null,null,null,null,null,null,null,null,null,null,null,"Jul"]
[null,null,null,null,null,null,null,null,null,null,null,"Aug"]
[null,null,null,null,null,null,null,null,null,null,null,"Sep"]
[null,null,null,null,null,null,null,null,null,null,null,"Oct"]
[null,null,null,null,null,null,null,null,null,null,null,"Nov"]
[null,null,null,null,null,null,null,null,null,null,null,"Dec"]
[null,null,null,null,null,null,null,null,null,null,null,"Annual",{"$f":"AVERAGE(M52:M63)","v":{"$error":"#DIV/0!"}},null,{"$f":"MAX(O52:O63)","v":0},{"$f":"AVERAGE(P52:P63)","v":{"$error":"#DIV/0!"}},{"$f":"MAX(Q52:Q63)","v":0}]
[]
[null,null,null,null,null,null,null,null,null,null,{"$f":"+A6","v":2020},"mg/Nm3","95%ile 10-min avg maximum","Monthly CO 10-min avg mean","10-min avg maximum","Monthly daily mean","Monthly daily maximum"]
[null,null,null,null,null,null,null,null,null,null,"A5","Jan"]
[null,null,null,null,null,null,null,null,null,null,null,"Feb"]
[null,null,null,null,null,null,null,null,null,null,null,"Mar"]
[null,null,null,null,null,null,null,null,null,null,null,"Apr"]
[null,null,null,null,null,null,null,null,null,null,null,"May"]
[null,null,null,null,null,null,null,null,null,null,null,"Jun"]
[null,null,null,null,null,null,null,null,null,null,null,"Jul"]
[null,null,null,null,null,null,null,null,null,null,null,"Aug"]
[null,null,null,null,null,null,null,null,null,null,null,"Sep"]
[null,null,null,null,null,null,null,null,null,null,null,"Oct"]
[null,null,null,null,null,null,null,null,null,null,null,"Nov"]
[null,null,null,null,null,null,null,null,null,null,null,"Dec"]
[null,null,null,null,null,null,null,null,null,null,null,"Annual",{"$f":"AVERAGE(M67:M78)","v":{"$error":"#DIV/0!"}},null,{"$f":"MAX(O67:O78)","v":0},{"$f":"AVERAGE(P67:P78)","v":{"$error":"#DIV/0!"}},{"$f":"MAX(Q67:Q78)","v":0}]

{"sheet":"NH3","index":20,"n_rows":79,"n_cols":17,"rows_kept":79,"cut":false,"hidden":false,"merged":[[3,16,7,18],[9,16,11,18],[12,16,15,18],[66,9,78,9],[4,1,4,3],[4,4,4,6],[4,9,4,14],[6,9,18,9],[21,9,33,9],[36,9,48,9],[47,0,47,6],[48,0,51,6],[51,9,63,9]]}
[{"$f":"+'Cover Page'!$B$29","v":"Annual Performance Report 2020"},null,null,null,{"$f":"+'Cover Page'!$B$33","v":"Wolverhampton Energy from Waste Facility"}]
[]
["Monitoring of Ammnonia emissions ",null,null,"Whole Installation",null,null,"See  Notes in Cell Q3",null,null,{"$f":"+A3","v":"Monitoring of Ammnonia emissions "},null,null,null,"Per Combustion Line",null,null,"Notes:"]
[null,null,null,null,null,null,null,null,null,null,null,null,null,null,null,null,"User to add logic to complete Whole installation, Table A5:G18. From the data in Per Combustion Line, Table J6:O79, subject to No. of lines installed"]
["mg/Nm3","1/2 Hourly Reference Periods",null,null,"Daily Reference Periods"]
[{"$f":"+'Cover Page'!C39","v":2020},"1/2 hourly NH3 ELV","Monthly 1/2 hourly mean","Highest 1/2 hourly maximum","Daily NH3 ELV","Monthly daily mean","Highest daily maximum",null,null,{"$f":"+A6","v":2020},"mg/Nm3","Monthly 1/2 hourly mean","Monthly 1/2 hourly maximum","Monthly daily mean","Monthly daily maximum"]
["Jan",0,{"$f":"AVERAGE(L7,L22)","v":2.5},{"$f":"MAX(M7,M22)","v":31},10,{"$f":"AVERAGE(N7,N22)","v":2.5},{"$f":"MAX(O7,O22)","v":6},null,null,"A1","Jan",2,31,2,6]
["Feb",{"$f":"+B7","v":0},{"$f":"AVERAGE(L8,L23)","v":3},{"$f":"MAX(M8,M23)","v":151},{"$f":"+E7","v":10},{"$f":"AVERAGE(N8,N23)","v":3},{"$f":"MAX(O8,O23)","v":8},null,null,null,"Feb",3,151,3,8]
["Mar",{"$f":"+B8","v":0},1,59,{"$f":"+E8","v":10},1,7,null,null,null,"Mar",1,59,1,7,null,"Whole Installation table A5:G18:"]
["Apr",0,1,45,10,1,4,null,null,null,"Apr",1,21,1,4,null,"Mean: for 1/2 hourly and daily periods calculate mean of values across all operational combustion lines for the month"]
["May",0,2.5,50,10,2.5,6,null,null,null,"May",2,31,2,4]
["Jun",0,2.5,81,10,2.5,7,null,null,null,"Jun",2,63,2,4]
["Jul",0,2,90,10,2,6,null,null,null,"Jul",1,51,1,4,null,"Maximum: for 1/2 hourly and daily periods use the highest value across all operational combustion lines for the month"]
["Aug",0,3.5,57,10,3.5,11,null,null,null,"Aug",3,57,3,11]
["Sep",0,7.5,81,10,7.5,13,null,null,null,"Sep",9,81,9,13]
["Oct",0,4,77,10,4,21,null,null,null,"Oct",4,77,4,21]
["Nov",0,2,49,10,2,7,null,null,null,"Nov",3,49,3,7]
["Dec",0,{"$f":"AVERAGE(L18,L33)","v":0.5},{"$f":"MAX(M18,M33)","v":56},10,0.5,2,null,null,null,"Dec",1,9,1,1]
[null,null,null,null,null,null,null,null,null,null,"Annual",{"$f":"AVERAGE(L7:L18)","v":2.6666666666666665},{"$f":"MAX(M7:M18)","v":151},{"$f":"AVERAGE(N7:N18)","v":2.6666666666666665},{"$f":"MAX(O7:O18)","v":21}]
[]
[null,null,null,null,null,null,null,null,null,{"$f":"+A6","v":2020},"mg/Nm3","Monthly 1/2 hourly mean","Monthly 1/2 hourly maximum","Monthly daily mean","Monthly daily maximum"]
[null,null,null,null,null,null,null,null,null,"A2","Jan",3,31,3,5]
[null,null,null,null,null,null,null,null,null,null,"Feb",3,21,3,7]
[null,null,null,null,null,null,null,null,null,null,"Mar",1,23,1,3]
[null,null,null,null,null,null,null,null,null,null,"Apr",1,45,1,4]
[null,null,null,null,null,null,null,null,null,null,"May",3,50,3,6]
[null,null,null,null,null,null,null,null,null,null,"Jun",3,81,3,7]
[null,null,null,null,null,null,null,null,null,null,"Jul",3,90,3,6]
[null,null,null,null,null,null,null,null,null,null,"Aug",4,49,4,8]
[null,null,null,null,null,null,null,null,null,null,"Sep",6,52,6,9]
[null,null,null,null,null,null,null,null,null,null,"Oct",4,72,4,10]
[null,null,null,null,null,null,null,null,null,null,"Nov",1,41,1,5]
[null,null,null,null,null,null,null,null,null,null,"Dec",0,56,0,2]
[null,null,null,null,null,null,null,null,null,null,"Annual",{"$f":"AVERAGE(L22:L33)","v":2.6666666666666665},{"$f":"MAX(M22:M33)","v":90},{"$f":"AVERAGE(N22:N33)","v":2.6666666666666665},{"$f":"MAX(O22:O33)","v":10}]
[]
[null,null,null,null,null,null,null,null,null,{"$f":"+A6","v":2020},"mg/Nm3","Monthly 1/2 hourly mean","Monthly 1/2 hourly maximum","Monthly daily mean","Monthly daily maximum"]
[null,null,null,null,null,null,null,null,null,"A3","Jan"]
[null,null,null,null,null,null,null,null,null,null,"Feb"]
[null,null,null,null,null,null,null,null,null,null,"Mar"]
[null,null,null,null,null,null,null,null,null,null,"Apr"]
[null,null,null,null,null,null,null,null,null,null,"May"]
[null,null,null,null,null,null,null,null,null,null,"Jun"]
[null,null,null,null,null,null,null,null,null,null,"Jul"]
[null,null,null,null,null,null,null,null,null,null,"Aug"]
[null,null,null,null,null,null,null,null,null,null,"Sep"]
[null,null,null,null,null,null,null,null,null,null,"Oct"]
[null,null,null,null,null,null,null,null,null,null,"Nov"]
["Comments :",null,null,null,null,null,null,null,null,null,"Dec"]
["An indicated ELV value of zero in the table above means that no ammonia limit is set in the permit.  ",null,null,null,null,null,null,null,null,null,"Annual",{"$f":"AVERAGE(L37:L48)","v":{"$error":"#DIV/0!"}},{"$f":"MAX(M37:M48)","v":0},{"$f":"AVERAGE(N37:N48)","v":{"$error":"#DIV/0!"}},{"$f":"MAX(O37:O48)","v":0}]
[]
[null,null,null,null,null,null,null,null,null,{"$f":"+A6","v":2020},"mg/Nm3","Monthly 1/2 hourly mean","Monthly 1/2 hourly maximum","Monthly daily mean","Monthly daily maximum"]
[null,null,null,null,null,null,null,null,null,"A4","Jan"]
[null,null,null,null,null,null,null,null,null,null,"Feb"]
[null,null,null,null,null,null,null,null,null,null,"Mar"]
[null,null,null,null,null,null,null,null,null,null,"Apr"]
[null,null,null,null,null,null,null,null,null,null,"May"]
[null,null,null,null,null,null,null,null,null,null,"Jun"]
[null,null,null,null,null,null,null,null,null,null,"Jul"]
[null,null,null,null,null,null,null,null,null,null,"Aug"]
[null,null,null,null,null,null,null,null,null,null,"Sep"]
[null,null,null,null,null,null,null,null,null,null,"Oct"]
[null,null,null,null,null,null,null,null,null,null,"Nov"]
[null,null,null,null,null,null,null,null,null,null,"Dec"]
[null,null,null,null,null,null,null,null,null,null,"Annual",{"$f":"AVERAGE(L52:L63)","v":{"$error":"#DIV/0!"}},{"$f":"MAX(M52:M63)","v":0},{"$f":"AVERAGE(N52:N63)","v":{"$error":"#DIV/0!"}},{"$f":"MAX(O52:O63)","v":0}]
[]
[null,null,null,null,null,null,null,null,null,{"$f":"+A6","v":2020},"mg/Nm3","Monthly 1/2 hourly mean","Monthly 1/2 hourly maximum","Monthly daily mean","Monthly daily maximum"]
[null,null,null,null,null,null,null,null,null,"A5","Jan"]
[null,null,null,null,null,null,null,null,null,null,"Feb"]
[null,null,null,null,null,null,null,null,null,null,"Mar"]
[null,null,null,null,null,null,null,null,null,null,"Apr"]
[null,null,null,null,null,null,null,null,null,null,"May"]
[null,null,null,null,null,null,null,null,null,null,"Jun"]
[null,null,null,null,null,null,null,null,null,null,"Jul"]
[null,null,null,null,null,null,null,null,null,null,"Aug"]
[null,null,null,null,null,null,null,null,null,null,"Sep"]
[null,null,null,null,null,null,null,null,null,null,"Oct"]
[null,null,null,null,null,null,null,null,null,null,"Nov"]
[null,null,null,null,null,null,null,null,null,null,"Dec"]
[null,null,null,null,null,null,null,null,null,null,"Annual",{"$f":"AVERAGE(L67:L78)","v":{"$error":"#DIV/0!"}},{"$f":"MAX(M67:M78)","v":0},{"$f":"AVERAGE(N67:N78)","v":{"$error":"#DIV/0!"}},{"$f":"MAX(O67:O78)","v":0}]